{"text_format":"1","workbook":"xlsx","n_sheets":10,"sheets":["Instructivo","DEMANDA ANUAL","VOLUMEN DE QUEJAS","COSTO ADMINISTRACIÓN PÚBLICA","RESUMEN DE COSTOS AP","AUXILIAR COSTO ADMINISTRACIÓN","AUXILIAR COSTO ADMINISTRACION","TIEMPO DE RESPUESTA","CANAL ATENCIÓN","RESUMEN"],"not_rendered":{"charts":0,"images":7,"macros":1,"external_links":0,"defined_names":2,"comments":5,"pivot_tables":0},"unopened":[],"bounds":{"document_bytes":16777216,"sheet_cells":100000,"rows_first":2000,"rows_last":500,"rows_between":2000,"halvings":0,"cell_chars":16384,"cell_head_chars":4096},"cells_cut":0,"cells_raw":0,"read":"whole","date_system":"1900"}

{"sheet":"Instructivo","index":0,"n_rows":70,"n_cols":1,"rows_kept":70,"cut":false,"hidden":false,"merged":[]}
["CRITERIO DE PRIORIZACIÓN DE TRÁMITES ADMINISTRATIVOS"]
["Instructivo"]
["Consideraciones generales"]
[]
["En las hojas “COSTO DE ADMINISTRACIÓN PÚBLICA”y “RESUMEN”  para añadir más trámites y que apliquen las fórmulas, se deberá seleccionar la primera fila y copiarla una por cada trámite de la entidad"]
[]
["Todas las hojas tienen columnas de color celeste, en las cuales NO deben ingresar valores ya que contienen fórmulas."]
["Para la carga en GOB.EC. La institución debe recordar que el peso máximo del archivo es de 2 MB."]
["Esquema de puntuación"]
["Para priorizar un trámite, se realizará un análisis de criterios básicos y adicionales basado en información que disponen las instituciones sujetas a esta norma técnica. Cada criterio será puntuado según los lineamientos presentes en esta norma."]
["a) Demanda Anual"]
["Considerará el volumen o frecuencia de las solicitudes que ingresan al año a cada institución para la gestión de un trámite en particular."]
["La identificación del volumen anual de los trámites se realizará a través de sus registros de transacciones y/o el número de visitas de consulta de información realizadas a través de páginas web institucionales."]
["Para realizar el registro realice lo siguiente:"]
["1.- Seleccione la hoja DEMANDA ANUAL"]
["2.- Ingrese los trámites de la institución registrando el identificador y nombre en las columnas respectivas.  "]
["3.- Para cada trámite debe especificar en la columna DEMANDA ANUAL el volumen o frecuencia anual, de acuerdo a lo mencionado anteriormente."]
["4.- Una vez terminado el llenado solicitado presione el botón PUNTUACIÓN, se ordenara de menor a mayor. "]
["5.- Usted visualizará el ordenamiento de los trámites ingresados de acuerdo al número de  volumen o frecuencia anual."]
["6.- Así mismo, usted visualizará el puntaje obtenido en la columna PUNTUACIÓN de acuerdo al grupo obtenido por cada trámite de acuerdo al número de volumen o frecuencia anual cosiderando lo siguiente: ** Primer grupo (trámites con menor demanda no incluye los trámites con demanda 0 ) = 3\n** Segundo grupo (trámites con demanda intermedia) = 6\n** Tercer grupo (trámites con mayor demanda) = 10"]
["Cada vez que requiera actualizar el puntaje presionando el botón puntuación, debe verificar que la celda de la columna puntaje se encuentren vacías, es decir, se debe borrar cualquier valor de puntaje obtenido previamente."]
["b) Volumen de quejas asociadas a un trámite: "]
["Considerará la cantidad de quejas recibidas en relación a un trámite durante un año. Estas quejas deberán estar documentadas en medios físicos y/o digitales."]
["Para determinar la puntuación, se colocará en una tabla todos los trámites con sus correspondientes quejas ordenándose de menor a mayor. Se dividirá en 2 partes en los que cada grupo contenga la misma cantidad de trámites."]
["Para realizar el registro realice lo siguiente:"]
["1.- Seleccione la hoja VOLUMEN DE QUEJAS"]
["2.- Ingrese los trámites de la institución registrando el identificador y nombre en las columnas respectivas.  Si usted requiere de acuerdo al número de trámites copie filas adicionales que estén dentro del cuadro"]
["3.- Para cada trámite debe especificar en la columna VOLUMEN QUEJAS el número de quejas anual, de acuerdo a lo mencionado anteriormente."]
["4.- Una vez terminado el llenado solicitado presione el botón PUNTUACIÓN."]
["5.- Usted visualizará el ordenamiento de los trámites ingresados de acuerdo al número de  volumen o frecuencia anual."]
["6.- Así mismo, usted visualizará el puntaje obtenido en la columna PUNTUACIÓN de acuerdo al grupo obtenido por cada trámite de acuerdo al número de volumen o frecuencia anual cosiderando lo siguiente: La puntuación se basará en los siguientes grupos:\n** Primer grupo (trámites con menor cantidad de quejas, no incluye los trámites con queja 0 ) = 4\n** Segundo grupo (trámites con mayor porcentaje de quejas) = 10"]
["El valor del volumen de quejas no debe ser superior al valor del volumen de la demana, no le permitirá registrar un valor."]
["c) Costo para la administración pública: "]
["En cada trámite, basado en un caso estándar, se deberá estimar el costo incurrido en el costo de personal y recursos necesarios para su atención desde que el administrado entregó todos los requisitos hasta que la institución entregue el producto, respuesta o servicio requerido en el trámite. Se considerará:"]
["• Costo de personal:"]
["Costo del personal para atender el trámite, se excluyen actividades realizadas automáticamente o que dependen del administrado. El tiempo deberá considerar únicamente el tiempo efectivo de trabajo del personal, no debe considerar el tiempo de espera o de movimiento."]
["• Costo de recursos:"]
["Se deberá considerar el costo directo en el que la institución debe incurrir para atender un trámite. Se debe considerar los insumos o materia prima necesaria u cualquier otro que la institución considere pertinente."]
["Para realizar el registro realice lo siguiente:"]
["1.- Seleccione la hoja COSTO ADMINISTRACIÓN PÚBLICA"]
["2.- Ingrese los trámites de la institución registrando el identificador y nombre en las columnas respectivas.  Si usted requiere de acuerdo al número de trámites copie filas adicionales que estén dentro del cuadro"]
["3.- Para calcular el tiempo de las actividades, utilizar la hoja AUXILIAR COSTO ADMINISTRACIÓN donde deberá listar todas las actividades que realiza la institución en un caso estándar y asignar el tiempo mínimo que toma cada actvidad (en horas). El tiempo total de las actividades, deberá ingresar en la correspondiente celda de la hoja COSTO ADMINISTRACIÓN PÚBLICA"]
["4.- En función de la información registrada en el paso 3, la matriz entregará el costo del personal"]
["5.- Completar la columna \"Costo recursos\", en la cual ingresará el costo directo en el que incurre la institución para entregar el trámite. En este valor se considerarán los valores correspondientes a insumos y/o materia prima mínimos que se invierten por cada trámite (no se considera mano de obra)"]
["6.- La columna \"Costo para la adm. pública\" mostrará el costto de este criterio para cada trámite"]
["7,- Para que la fórmula funcione debe arrastrar hacia abajo al último de los támites ingresados, no copiar"]
["7.- Una vez que disponga del Costo para la administración pública, presionar el botón \"GENERAR\"."]
["8. Visualizar la hoja “RESUMEN DE COSTO AP” en la que va a encontrar copiada las celdas necesarias para el ordenamiento y puntuación de las mismas al presionar el botón “PUNTUACIÓN”"]
[]
["d) Tiempo de respuesta: "]
["Considerará los tiempos que a las instituciones les toma dar respuesta a un trámite desde que reciben la solicitud del administrado hasta la finalización del mismo. Para la definición del tiempo se considerará un caso estándar."]
["Para determinar la puntuación, se colocará en una tabla todos los trámites con el tiempo de respuesta, ordenándose de menor a mayor. Se dividirá en 4 grupos, en los que cada uno contenga la misma cantidad de trámites."]
["Para realizar el registro realice lo siguiente:"]
["1.- Seleccione la hoja TIEMPO DE RESPUESTA"]
["2.- Ingrese los trámites de la institución registrando el identificador y nombre en las columnas respectivas.  Si usted requiere de acuerdo al número de trámites copie filas adicionales que estén dentro del cuadro"]
["3.- Para cada trámite debe especificar en la columna TIEMPO RESPUESTA el tiempo, de acuerdo a lo mencionado anteriormente."]
["4.- Una vez terminado el llenado solicitado presione el botón PUNTUACIÓN."]
["5.- Usted visualizará el ordenamiento de los trámites ingresados de acuerdo al número de  volumen o frecuencia anual."]
["6.- Así mismo, usted visualizará el puntaje obtenido en la columna PUNTUACIÓN de acuerdo al grupo obtenido por cada trámite de acuerdo al número de volumen o frecuencia anual cosiderando lo siguiente:  La puntuación considera lo siguiente:\n** Primer grupo (menor o igual a 40 horas laboralres) = 0\n** Segundo grupo mayor  40 horas laboralres) = 30"]
["e) Canal de atención: "]
["Considerará los canales de atención a través de los cuales el administrado puede iniciar el trámite."]
["Para realizar el registro realice lo siguiente:"]
["1.- Seleccione la hoja CANAL ATENCIÓN"]
["2.- Ingrese los trámites de la institución registrando el identificador y nombre en las columnas respectivas.  Si usted requiere de acuerdo al número de trámites copie filas adicionales que estén dentro del cuadro"]
["3.- Para cada trámite debe seleccionar el canal de atención del trámite en la columna CANAL ATENCIÓN, que pueden ser: \nEl trámite se puede completar totalmente en línea: Se considera trámite totalmente en línea cuando el administrado no requiere realizar ninguna interacción presencial con la institución = 0\nEl trámite no se puede completar totalmente en línea: Se considera este caso, cuando el trámite incluye al menos una actividad, incluido mecanismos de pago, en la que el administrado deba acudir presencialmente a la institución, para la realización de dicho trámite. Los trámites presenciales se consideran dentro de esta categoría = 10"]
["4.- De acuerdo a la selección usted obtendrá la puntuación del trámite que se visualizará en la columna PUNTUACIÓN."]
[]
["f) Resumen"]
["En esta hoja deberá consolidar todas las puntuaciones obtenidas para cada trámite en los criterios a) hasta e). Adicionalmente deberá analizar los criterios adicionales que dispone la norma técnica, para estos últimos solamente deberá seleccionar en la celda correspondiente y la matriz asignará la puntuación adicional. Los criterios que deberá considerar son:\n- NECESIDADES CIUDADANAS: Si la institución ha implementado mecanismos para identificar necesidades ciudadanas respecto al trámite, seleccionar \"SI\", caso contrario, seleccionar \"NO\"\n- SUSCEPTIBILIDAD A CORRUPCIÓN: Si la institución dispone de información documentada sobre presuntos actos de corrupción, seleccionar \"SI\", caso contrario, seleccionar \"NO\"\n- VOLUMEN DE DEVOLUCIONES: Si la institución posee documentación sobre devoluciones del trámite en una cantidad significativa, seleccionar \"SI\", caso contrario, seleccionar \"NO\"\nPara que funcione la lista depelgable debe arrastrar la lista y la puntuación hacia abajo al último de los támites ingresados, no copiar"]
["En la columna puntaje total se realizará la sumatoria de los valores de los criterios básicos y adicionales. Este valor deberá registrarse en la plataforma GOB.EC"]

{"sheet":"DEMANDA ANUAL","index":1,"n_rows":36,"n_cols":4,"rows_kept":36,"cut":false,"hidden":false,"merged":[[0,0,0,3],[1,0,1,3]]}
["PRIORIZACIÓN DE TRÁMITES ADMINISTRATIVOS"]
["DEMANDA ANUAL"]
[]
["IDENTIFICADOR","TRÁMITE","DEMANDA ANUAL","PUNTAJE"]
["INDOT-011-01-01","Atención a la información de carácter público relacionada al Instituto Nacional de Donación y Trasplante de Órganos, Tejidos y Células",0,0]
["INDOT-002-01-08","Solicitud de Acreditación de Banco de Sangre de Cordón Umbilical",0,0]
["INDOT-002-01-06","Solicitud de Acreditación de establecimientos de salud y sus profesionales de salud para programa de ablación y procuración de glóbulos oculares",0,0]
["INDOT-002-01-03","Solicitud de Acreditación de establecimientos de salud y sus profesionales de salud para programa de trasplante de progenitores hematopoyéticos",0,0]
["INDOT-002-01-11","Solicitud de Acreditación de establecimientos de salud y sus profesionales de salud para programa de trasplante pulmonar.",0,0]
["INDOT-002-02-06","Solicitud de Reacreditación de establecimientos de salud y sus profesionales de salud para programa de ablación y procuración de glóbulos oculares",0,0]
["INDOT-002-02-05","Solicitud de Reacreditación de establecimientos de salud y sus profesionales de salud para programa de trasplante de tejido osteo muscular ligamentoso",0,0]
["INDOT-002-02-10","Solicitud de Reacreditación de laboratorios de HLA para trasplante",0,0]
["INDOT-002-02-11","\tSolicitud de Reacreditación de establecimientos de salud y sus profesionales de salud para programa de trasplante cardíaco",1,3]
["INDOT-002-01-07","Solicitud de Acreditación de Banco de Tejidos - Almacenamiento temporal y definitivo de tejidos importados",1,3]
["INDOT-002-01-01","Solicitud de Acreditación de establecimientos de salud y sus profesionales de salud para programa de trasplante renal",1,3]
["INDOT-002-01-09","Solicitud de Acreditación de laboratorios de HLA para trasplante.",1,3]
["INDOT-010-01-02","Solicitud de Capacitación semipresencial",1,3]
["INDOT-002-02-09","Solicitud de Reacreditación de Banco de Sangre de Cordón Umbilical",1,3]
["INDOT-002-02-08","Solicitud de Reacreditación de Banco de Tejidos - Almacenamiento temporal y definitivo de tejidos importados",1,3]
["INDOT-002-02-03","Solicitud de Reacreditación de establecimientos de salud y sus profesionales de salud para programa de trasplante de progenitores hematopoyéticos",1,3]
["INDOT-002-02-02","Solicitud de Reacreditación de establecimientos de salud y sus profesionales de salud para programa de trasplante hepático",1,3]
["INDOT-002-02-12","Solicitud de Reacreditación de establecimientos de salud y sus profesionales de salud para programa de trasplante pulmonar",1,3]
["INDOT-002-01-10","Solicitud de Acreditación de establecimientos de salud y sus profesionales de salud para programa de trasplante cardíaco",2,6]
["INDOT-010-01-01","Solicitud de Capacitación virtual",2,6]
["INDOT-002-01-02","\tSolicitud de Acreditación de establecimientos de salud y sus profesionales de salud para programa de trasplante hepático",3,6]
["INDOT-002-01-05","Solicitud de Acreditación de establecimientos de salud y sus profesionales de salud para programa de trasplante de tejido osteo muscular ligamentoso",3,6]
["INDOT-002-02-01","Solicitud de Reacreditación de establecimientos de salud y sus profesionales de salud para programa de trasplante renal",4,6]
["\tINDOT-008-05-02","Autorización para la donación en vida",5,6]
["INDOT-002-01-04","Solicitud de Acreditación de establecimientos de salud y sus profesionales de salud para programa de córneas",5,6]
["INDOT-002-02-04","Solicitud de Reacreditación de establecimientos de salud y sus profesionales de salud para programa de trasplante de córneas",14,10]
["INDOT-008-03-01","Asignación de Órganos para Pacientes en la Lista de espera única Nacional",36,10]
["INDOT-008-05-01","\tAutorización para la importación y exportación de tejidos y células para trasplante",60,10]
["INDOT-008-05-03","Autorización para la donación en vida tejidos",99,10]
["INDOT-008-02-01","\tSolicitud de Provisión de Tejido Osteo Muscular Ligamentoso (TOML) y piel para trasplante",153,10]
["INDOT-008-06-01","Ingreso a Lista de Espera Única Nacional - LEUN",269,10]
["INDOT-003-01-01","Información de la actividad de Donación y Trasplante de Órganos, Tejidos y Células",279,10]

{"sheet":"VOLUMEN DE QUEJAS","index":2,"n_rows":36,"n_cols":6,"rows_kept":36,"cut":false,"hidden":false,"merged":[[0,0,0,5],[1,0,1,5]]}
["PRIORIZACIÓN DE TRÁMITES ADMINISTRATIVOS"]
["VOLUMEN DE QUEJAS"]
[]
["IDENTIFICADOR","TRÁMITE","VOLUMEN DEMANDA","VOLUMEN DE QUEJAS","PORCENTAJE","PUNTUACIÓN"]
["INDOT-011-01-01","Atención a la información de carácter público relacionada al Instituto Nacional de Donación y Trasplante de Órganos, Tejidos y Células",0,null,0,0]
["INDOT-002-01-08","Solicitud de Acreditación de Banco de Sangre de Cordón Umbilical",0,null,0,0]
["INDOT-002-01-06","Solicitud de Acreditación de establecimientos de salud y sus profesionales de salud para programa de ablación y procuración de glóbulos oculares",0,null,0,0]
["INDOT-002-01-03","Solicitud de Acreditación de establecimientos de salud y sus profesionales de salud para programa de trasplante de progenitores hematopoyéticos",0,null,0,0]
["INDOT-002-01-11","Solicitud de Acreditación de establecimientos de salud y sus profesionales de salud para programa de trasplante pulmonar.",0,null,0,0]
["INDOT-002-02-06","Solicitud de Reacreditación de establecimientos de salud y sus profesionales de salud para programa de ablación y procuración de glóbulos oculares",0,null,0,0]
["INDOT-002-02-05","Solicitud de Reacreditación de establecimientos de salud y sus profesionales de salud para programa de trasplante de tejido osteo muscular ligamentoso",0,null,0,0]
["INDOT-002-02-10","Solicitud de Reacreditación de laboratorios de HLA para trasplante",0,null,0,0]
["INDOT-002-02-11","\tSolicitud de Reacreditación de establecimientos de salud y sus profesionales de salud para programa de trasplante cardíaco",1,null,0,0]
["INDOT-002-01-07","Solicitud de Acreditación de Banco de Tejidos - Almacenamiento temporal y definitivo de tejidos importados",1,null,0,0]
["INDOT-002-01-01","Solicitud de Acreditación de establecimientos de salud y sus profesionales de salud para programa de trasplante renal",1,null,0,0]
["INDOT-002-01-09","Solicitud de Acreditación de laboratorios de HLA para trasplante.",1,null,0,0]
["INDOT-010-01-02","Solicitud de Capacitación semipresencial",1,null,0,0]
["INDOT-002-02-09","Solicitud de Reacreditación de Banco de Sangre de Cordón Umbilical",1,1,100,10]
["INDOT-002-02-08","Solicitud de Reacreditación de Banco de Tejidos - Almacenamiento temporal y definitivo de tejidos importados",1,null,0,0]
["INDOT-002-02-03","Solicitud de Reacreditación de establecimientos de salud y sus profesionales de salud para programa de trasplante de progenitores hematopoyéticos",1,null,0,0]
["INDOT-002-02-02","Solicitud de Reacreditación de establecimientos de salud y sus profesionales de salud para programa de trasplante hepático",1,null,0,0]
["INDOT-002-02-12","Solicitud de Reacreditación de establecimientos de salud y sus profesionales de salud para programa de trasplante pulmonar",1,null,0,0]
["INDOT-002-01-10","Solicitud de Acreditación de establecimientos de salud y sus profesionales de salud para programa de trasplante cardíaco",2,null,0,0]
["INDOT-010-01-01","Solicitud de Capacitación virtual",2,null,0,0]
["INDOT-002-01-02","\tSolicitud de Acreditación de establecimientos de salud y sus profesionales de salud para programa de trasplante hepático",3,null,0,0]
["INDOT-002-01-05","Solicitud de Acreditación de establecimientos de salud y sus profesionales de salud para programa de trasplante de tejido osteo muscular ligamentoso",3,null,0,0]
["INDOT-002-02-01","Solicitud de Reacreditación de establecimientos de salud y sus profesionales de salud para programa de trasplante renal",4,null,0,0]
["\tINDOT-008-05-02","Autorización para la donación en vida",5,null,0,0]
["INDOT-002-01-04","Solicitud de Acreditación de establecimientos de salud y sus profesionales de salud para programa de córneas",5,null,0,0]
["INDOT-002-02-04","Solicitud de Reacreditación de establecimientos de salud y sus profesionales de salud para programa de trasplante de córneas",14,null,0,0]
["INDOT-008-03-01","Asignación de Órganos para Pacientes en la Lista de espera única Nacional",36,null,0,0]
["INDOT-008-05-01","\tAutorización para la importación y exportación de tejidos y células para trasplante",60,null,0,0]
["INDOT-008-05-03","Autorización para la donación en vida tejidos",99,null,0,0]
["INDOT-008-02-01","\tSolicitud de Provisión de Tejido Osteo Muscular Ligamentoso (TOML) y piel para trasplante",153,null,0,0]
["INDOT-008-06-01","Ingreso a Lista de Espera Única Nacional - LEUN",269,null,0,0]
["INDOT-003-01-01","Información de la actividad de Donación y Trasplante de Órganos, Tejidos y Células",279,null,0,0]

{"sheet":"COSTO ADMINISTRACIÓN PÚBLICA","index":3,"n_rows":37,"n_cols":9,"rows_kept":37,"cut":false,"hidden":false,"merged":[[0,0,0,5],[1,0,1,5],[3,0,4,0],[3,1,4,1],[3,2,3,4],[3,5,4,5]]}
["PRIORIZACIÓN DE TRÁMITES ADMINISTRATIVOS"]
["COSTOS PARA LA ADMINISTRACIÓN PÚBLICA"]
[]
["IDENTIFICADOR","TRÁMITE","INSUMOS PARA COSTO",null,null,"COSTO PARA LA ADM. PÚBLICA",null,"SBU",400]
[null,null,"TIEMPO (HORAS)","COSTO PERSONAL","COSTO RECURSOS"]
["INDOT-011-01-01","Atención a la información de carácter público relacionada al Instituto Nacional de Donación y Trasplante de Órganos, Tejidos y Células",8,{"$f":"C6*$I$4/160","v":20},3.6,{"$f":"D6+E6","v":23.6}]
["INDOT-002-01-08","Solicitud de Acreditación de Banco de Sangre de Cordón Umbilical",574,{"$f":"C7*$I$4/160","v":1435},15,{"$f":"D7+E7","v":1450}]
["INDOT-002-01-06","Solicitud de Acreditación de establecimientos de salud y sus profesionales de salud para programa de ablación y procuración de glóbulos oculares",574,1435,15,1450]
["INDOT-002-01-03","Solicitud de Acreditación de establecimientos de salud y sus profesionales de salud para programa de trasplante de progenitores hematopoyéticos",574,1435,15,1450]
["INDOT-002-01-11","Solicitud de Acreditación de establecimientos de salud y sus profesionales de salud para programa de trasplante pulmonar.",574,1435,15,1450]
["INDOT-002-02-06","Solicitud de Reacreditación de establecimientos de salud y sus profesionales de salud para programa de ablación y procuración de glóbulos oculares",574,1435,15,1450]
["INDOT-002-02-05","Solicitud de Reacreditación de establecimientos de salud y sus profesionales de salud para programa de trasplante de tejido osteo muscular ligamentoso",574,1435,15,1450]
["INDOT-002-02-10","Solicitud de Reacreditación de laboratorios de HLA para trasplante",574,1435,15,1450]
["INDOT-002-02-11","\tSolicitud de Reacreditación de establecimientos de salud y sus profesionales de salud para programa de trasplante cardíaco",574,1435,15,1450]
["INDOT-002-01-07","Solicitud de Acreditación de Banco de Tejidos - Almacenamiento temporal y definitivo de tejidos importados",574,1435,15,1450]
["INDOT-002-01-01","Solicitud de Acreditación de establecimientos de salud y sus profesionales de salud para programa de trasplante renal",574,1435,15,1450]
["INDOT-002-01-09","Solicitud de Acreditación de laboratorios de HLA para trasplante.",574,1435,15,1450]
["INDOT-010-01-02","Solicitud de Capacitación semipresencial",8,20,8,28]
["INDOT-002-02-09","Solicitud de Reacreditación de Banco de Sangre de Cordón Umbilical",574,1435,15,1450]
["INDOT-002-02-08","Solicitud de Reacreditación de Banco de Tejidos - Almacenamiento temporal y definitivo de tejidos importados",574,1435,15,1450]
["INDOT-002-02-03","Solicitud de Reacreditación de establecimientos de salud y sus profesionales de salud para programa de trasplante de progenitores hematopoyéticos",574,1435,15,1450]
["INDOT-002-02-02","Solicitud de Reacreditación de establecimientos de salud y sus profesionales de salud para programa de trasplante hepático",574,1435,15,1450]
["INDOT-002-02-12","Solicitud de Reacreditación de establecimientos de salud y sus profesionales de salud para programa de trasplante pulmonar",574,1435,15,1450]
["INDOT-002-01-10","Solicitud de Acreditación de establecimientos de salud y sus profesionales de salud para programa de trasplante cardíaco",574,1435,15,1450]
["INDOT-010-01-01","Solicitud de Capacitación virtual",7.75,19.375,3.6,22.975000000000001]
["INDOT-002-01-02","\tSolicitud de Acreditación de establecimientos de salud y sus profesionales de salud para programa de trasplante hepático",574,1435,15,1450]
["INDOT-002-01-05","Solicitud de Acreditación de establecimientos de salud y sus profesionales de salud para programa de trasplante de tejido osteo muscular ligamentoso",574,1435,15,1450]
["INDOT-002-02-01","Solicitud de Reacreditación de establecimientos de salud y sus profesionales de salud para programa de trasplante renal",574,1435,15,1450]
["\tINDOT-008-05-02","Autorización para la donación en vida",40,100,5,105]
["INDOT-002-01-04","Solicitud de Acreditación de establecimientos de salud y sus profesionales de salud para programa de córneas",574,1435,15,1450]
["INDOT-002-02-04","Solicitud de Reacreditación de establecimientos de salud y sus profesionales de salud para programa de trasplante de córneas",574,1435,15,1450]
["INDOT-008-03-01","Asignación de Órganos para Pacientes en la Lista de espera única Nacional",5,12.5,13,25.5]
["INDOT-008-05-01","\tAutorización para la importación y exportación de tejidos y células para trasplante",48,120,5,125]
["INDOT-008-05-03","Autorización para la donación en vida tejidos",1.55,3.875,5,8.875]
["INDOT-008-02-01","\tSolicitud de Provisión de Tejido Osteo Muscular Ligamentoso (TOML) y piel para trasplante",1,2.5,5,7.5]
["INDOT-008-06-01","Ingreso a Lista de Espera Única Nacional - LEUN",8.75,21.875,3.6,25.475000000000001]
["INDOT-003-01-01","Información de la actividad de Donación y Trasplante de Órganos, Tejidos y Células",40,100,3.6,103.6]

{"sheet":"RESUMEN DE COSTOS AP","index":4,"n_rows":36,"n_cols":4,"rows_kept":36,"cut":false,"hidden":false,"merged":[[0,0,0,5],[1,0,1,5]]}
["PRIORIZACIÓN DE TRÁMITES ADMINISTRATIVOS"]
["COSTOS PARA LA ADMINISTRACIÓN PÚBLICA"]
[]
["IDENTIFICADOR","TRÁMITE","COSTO PARA LA ADM. PÚBLICA","PUNTUACIÓN"]
["INDOT-011-01-01","Atención a la información de carácter público relacionada al Instituto Nacional de Donación y Trasplante de Órganos, Tejidos y Células",23.6,5]
["INDOT-002-01-08","Solicitud de Acreditación de Banco de Sangre de Cordón Umbilical",1450,5]
["INDOT-002-01-06","Solicitud de Acreditación de establecimientos de salud y sus profesionales de salud para programa de ablación y procuración de glóbulos oculares",1450,5]
["INDOT-002-01-03","Solicitud de Acreditación de establecimientos de salud y sus profesionales de salud para programa de trasplante de progenitores hematopoyéticos",1450,5]
["INDOT-002-01-11","Solicitud de Acreditación de establecimientos de salud y sus profesionales de salud para programa de trasplante pulmonar.",1450,5]
["INDOT-002-02-06","Solicitud de Reacreditación de establecimientos de salud y sus profesionales de salud para programa de ablación y procuración de glóbulos oculares",1450,5]
["INDOT-002-02-05","Solicitud de Reacreditación de establecimientos de salud y sus profesionales de salud para programa de trasplante de tejido osteo muscular ligamentoso",1450,5]
["INDOT-002-02-10","Solicitud de Reacreditación de laboratorios de HLA para trasplante",1450,5]
["INDOT-002-02-11","\tSolicitud de Reacreditación de establecimientos de salud y sus profesionales de salud para programa de trasplante cardíaco",1450,5]
["INDOT-002-01-07","Solicitud de Acreditación de Banco de Tejidos - Almacenamiento temporal y definitivo de tejidos importados",1450,5]
["INDOT-002-01-01","Solicitud de Acreditación de establecimientos de salud y sus profesionales de salud para programa de trasplante renal",1450,10]
["INDOT-002-01-09","Solicitud de Acreditación de laboratorios de HLA para trasplante.",1450,10]
["INDOT-010-01-02","Solicitud de Capacitación semipresencial",28,10]
["INDOT-002-02-09","Solicitud de Reacreditación de Banco de Sangre de Cordón Umbilical",1450,10]
["INDOT-002-02-08","Solicitud de Reacreditación de Banco de Tejidos - Almacenamiento temporal y definitivo de tejidos importados",1450,10]
["INDOT-002-02-03","Solicitud de Reacreditación de establecimientos de salud y sus profesionales de salud para programa de trasplante de progenitores hematopoyéticos",1450,10]
["INDOT-002-02-02","Solicitud de Reacreditación de establecimientos de salud y sus profesionales de salud para programa de trasplante hepático",1450,10]
["INDOT-002-02-12","Solicitud de Reacreditación de establecimientos de salud y sus profesionales de salud para programa de trasplante pulmonar",1450,10]
["INDOT-002-01-10","Solicitud de Acreditación de establecimientos de salud y sus profesionales de salud para programa de trasplante cardíaco",1450,10]
["INDOT-010-01-01","Solicitud de Capacitación virtual",22.975000000000001,10]
["INDOT-002-01-02","\tSolicitud de Acreditación de establecimientos de salud y sus profesionales de salud para programa de trasplante hepático",1450,10]
["INDOT-002-01-05","Solicitud de Acreditación de establecimientos de salud y sus profesionales de salud para programa de trasplante de tejido osteo muscular ligamentoso",1450,10]
["INDOT-002-02-01","Solicitud de Reacreditación de establecimientos de salud y sus profesionales de salud para programa de trasplante renal",1450,10]
["\tINDOT-008-05-02","Autorización para la donación en vida",105,10]
["INDOT-002-01-04","Solicitud de Acreditación de establecimientos de salud y sus profesionales de salud para programa de córneas",1450,10]
["INDOT-002-02-04","Solicitud de Reacreditación de establecimientos de salud y sus profesionales de salud para programa de trasplante de córneas",1450,10]
["INDOT-008-03-01","Asignación de Órganos para Pacientes en la Lista de espera única Nacional",25.5,10]
["INDOT-008-05-01","\tAutorización para la importación y exportación de tejidos y células para trasplante",125,10]
["INDOT-008-05-03","Autorización para la donación en vida tejidos",8.875,10]
["INDOT-008-02-01","\tSolicitud de Provisión de Tejido Osteo Muscular Ligamentoso (TOML) y piel para trasplante",7.5,10]
["INDOT-008-06-01","Ingreso a Lista de Espera Única Nacional - LEUN",25.475000000000001,10]
["INDOT-003-01-01","Información de la actividad de Donación y Trasplante de Órganos, Tejidos y Células",103.6,10]

{"sheet":"AUXILIAR COSTO ADMINISTRACIÓN","index":5,"n_rows":20,"n_cols":3,"rows_kept":20,"cut":false,"hidden":true,"merged":[[1,1,1,2]]}
[]
["TRÁMITE:"]
["NO.","ACTIVIDAD","TIEMPO (HORAS)"]
[1]
[2]
[3]
[4]
[5]
[6]
[7]
[8]
[9]
[10]
[11]
[12]
[13]
[14]
[15]
[]
[null,"SUMATORIA ACTIVIDADES",{"$f":"SUM(C4:C19)","v":0}]

{"sheet":"AUXILIAR COSTO ADMINISTRACION","index":6,"n_rows":206,"n_cols":23,"rows_kept":206,"cut":false,"hidden":false,"merged":[[1,21,1,22],[1,1,1,2],[1,5,1,6],[1,9,1,10],[1,13,1,14],[1,17,1,18],[75,21,75,22],[38,1,38,2],[38,5,38,6],[38,9,38,10],[38,13,38,14],[38,17,38,18],[38,21,38,22],[75,1,75,2],[75,5,75,6],[75,9,75,10],[75,13,75,14],[75,17,75,18],[148,13,148,14],[148,17,148,18],[148,21,148,22],[111,1,111,2],[111,5,111,6],[111,9,111,10],[111,13,111,14],[111,17,111,18],[111,21,111,22],[172,1,172,2],[172,5,172,6],[148,1,148,2],[148,5,148,6],[148,9,148,10]]}
[]
["TRÁMITE:","Solicitud de Acreditación de establecimientos de salud y sus profesionales de salud para programa de trasplante renal",null,null,"TRÁMITE:","Solicitud de Acreditación de establecimientos de salud y sus profesionales de salud para programa de trasplante hepático",null,null,"TRÁMITE:","Solicitud de Acreditación de establecimientos de salud y sus profesionales de salud para programa de trasplante de progenitores hematopoyéticos",null,null,"TRÁMITE:","Solicitud de Acreditación de establecimientos de salud y sus profesionales de salud para programa de córneas",null,null,"TRÁMITE:","Solicitud de Acreditación de establecimientos de salud y sus profesionales de salud para programa de trasplante de tejido osteo muscular ligamentoso",null,null,"TRÁMITE:","Solicitud de Acreditación de establecimientos de salud y sus profesionales de salud para programa de ablación y procuración de glóbulos oculares"]
["NO.","ACTIVIDAD","TIEMPO (HORAS)",null,"NO.","ACTIVIDAD","TIEMPO (HORAS)",null,"NO.","ACTIVIDAD","TIEMPO (HORAS)",null,"NO.","ACTIVIDAD","TIEMPO (HORAS)",null,"NO.","ACTIVIDAD","TIEMPO (HORAS)",null,"NO.","ACTIVIDAD","TIEMPO (HORAS)"]
["<","Receptar la solicitud para acreditación del establecimiento de salud.",0.15,null,1,"Receptar la solicitud para acreditación del establecimiento de salud.",0.15,null,1,"Receptar la solicitud para acreditación del establecimiento de salud.",0.15,null,1,"Receptar la solicitud para acreditación del establecimiento de salud.",0.15,null,1,"Receptar la solicitud para acreditación del establecimiento de salud.",0.15,null,1,"Receptar la solicitud para acreditación del establecimiento de salud.",0.15]
[2,"Revisar la documentación previa.",4,null,2,"Revisar la documentación previa.",4,null,2,"Revisar la documentación previa.",4,null,2,"Revisar la documentación previa.",4,null,2,"Revisar la documentación previa.",4,null,2,"Revisar la documentación previa.",4]
[3,"Revisar la documentación para acreditación por parte del Analista Zonal.",8,null,3,"Revisar la documentación para acreditación por parte del Analista Zonal.",8,null,3,"Revisar la documentación para acreditación por parte del Analista Zonal.",8,null,3,"Revisar la documentación para acreditación por parte del Analista Zonal.",8,null,3,"Revisar la documentación para acreditación por parte del Analista Zonal.",8,null,3,"Revisar la documentación para acreditación por parte del Analista Zonal.",8]
[4,"Verificar la documentación completa para acreditación por parte de la Analista Zonal ",8,null,4,"Verificar la documentación completa para acreditación por parte de la Analista Zonal ",8,null,4,"Verificar la documentación completa para acreditación por parte de la Analista Zonal ",8,null,4,"Verificar la documentación completa para acreditación por parte de la Analista Zonal ",8,null,4,"Verificar la documentación completa para acreditación por parte de la Analista Zonal ",8,null,4,"Verificar la documentación completa para acreditación por parte de la Analista Zonal ",8]
[5,"Receptar la documentación por parte del Analista de Regulación y Control Nacional",2,null,5,"Receptar la documentación por parte del Analista de Regulación y Control Nacional",2,null,5,"Receptar la documentación por parte del Analista de Regulación y Control Nacional",2,null,5,"Receptar la documentación por parte del Analista de Regulación y Control Nacional",2,null,5,"Receptar la documentación por parte del Analista de Regulación y Control Nacional",2,null,5,"Receptar la documentación por parte del Analista de Regulación y Control Nacional",2]
[6,"Elaborar informe para aprobación de acreditación - Analista de Regulación y Control Nacional",12,null,6,"Elaborar informe para aprobación de acreditación - Analista de Regulación y Control Nacional",12,null,6,"Elaborar informe para aprobación de acreditación - Analista de Regulación y Control Nacional",12,null,6,"Elaborar informe para aprobación de acreditación - Analista de Regulación y Control Nacional",12,null,6,"Elaborar informe para aprobación de acreditación - Analista de Regulación y Control Nacional",12,null,6,"Elaborar informe para aprobación de acreditación - Analista de Regulación y Control Nacional",12]
[7,"Revisión de informe Directora de Regulación",2,null,7,"Revisión de informe Directora de Regulación",2,null,7,"Revisión de informe Directora de Regulación",2,null,7,"Revisión de informe Directora de Regulación",2,null,7,"Revisión de informe Directora de Regulación",2,null,7,"Revisión de informe Directora de Regulación",2]
[8,"Revisión de informe Coordinadora General Técnica",2,null,8,"Revisión de informe Coordinadora General Técnica",2,null,8,"Revisión de informe Coordinadora General Técnica",2,null,8,"Revisión de informe Coordinadora General Técnica",2,null,8,"Revisión de informe Coordinadora General Técnica",2,null,8,"Revisión de informe Coordinadora General Técnica",2]
[9,"Preparar respuesta para el establecimiento de salud de solicitud de acreditación",3,null,9,"Preparar respuesta para el establecimiento de salud de solicitud de acreditación",3,null,9,"Preparar respuesta para el establecimiento de salud de solicitud de acreditación",3,null,9,"Preparar respuesta para el establecimiento de salud de solicitud de acreditación",3,null,9,"Preparar respuesta para el establecimiento de salud de solicitud de acreditación",3,null,9,"Preparar respuesta para el establecimiento de salud de solicitud de acreditación",3]
[10,"Recepción de informe",0.15,null,10,"Recepción de informe",0.15,null,10,"Recepción de informe",0.15,null,10,"Recepción de informe",0.15,null,10,"Recepción de informe",0.15,null,10,"Recepción de informe",0.15]
[11,"Sumilla de documentación",0.15,null,11,"Sumilla de documentación",0.15,null,11,"Sumilla de documentación",0.15,null,11,"Sumilla de documentación",0.15,null,11,"Sumilla de documentación",0.15,null,11,"Sumilla de documentación",0.15]
[12,"Recepción de documentación desde el establecimiento de salud para la continuación del trámite - siguiente fase",240,null,12,"Recepción de documentación desde el establecimiento de salud para la continuación del trámite - siguiente fase",240,null,12,"Recepción de documentación desde el establecimiento de salud para la continuación del trámite - siguiente fase",240,null,12,"Recepción de documentación desde el establecimiento de salud para la continuación del trámite - siguiente fase",240,null,12,"Recepción de documentación desde el establecimiento de salud para la continuación del trámite - siguiente fase",240,null,12,"Recepción de documentación desde el establecimiento de salud para la continuación del trámite - siguiente fase",240]
[13,"Revisar documentación para proceso de acreditación - Analista de Regulación y Control Nacional",60,null,13,"Revisar documentación para proceso de acreditación - Analista de Regulación y Control Nacional",60,null,13,"Revisar documentación para proceso de acreditación - Analista de Regulación y Control Nacional",60,null,13,"Revisar documentación para proceso de acreditación - Analista de Regulación y Control Nacional",60,null,13,"Revisar documentación para proceso de acreditación - Analista de Regulación y Control Nacional",60,null,13,"Revisar documentación para proceso de acreditación - Analista de Regulación y Control Nacional",60]
[14,"Emitir respuesta para inicio de proceso de visita de inspección",24,null,14,"Emitir respuesta para inicio de proceso de visita de inspección",24,null,14,"Emitir respuesta para inicio de proceso de visita de inspección",24,null,14,"Emitir respuesta para inicio de proceso de visita de inspección",24,null,14,"Emitir respuesta para inicio de proceso de visita de inspección",24,null,14,"Emitir respuesta para inicio de proceso de visita de inspección",24]
[15,"Planificación de la visita de inspección e invitación al establecimiento de salud",8,null,15,"Planificación de la visita de inspección e invitación al establecimiento de salud",8,null,15,"Planificación de la visita de inspección e invitación al establecimiento de salud",8,null,15,"Planificación de la visita de inspección e invitación al establecimiento de salud",8,null,15,"Planificación de la visita de inspección e invitación al establecimiento de salud",8,null,15,"Planificación de la visita de inspección e invitación al establecimiento de salud",8]
[16,"Visita de inspección ",24,null,16,"Visita de inspección ",24,null,16,"Visita de inspección ",24,null,16,"Visita de inspección ",24,null,16,"Visita de inspección ",24,null,16,"Visita de inspección ",24]
[17,"Elaborar informe de la visita de inspección por el delegado",4,null,17,"Elaborar informe de la visita de inspección por el delegado",4,null,17,"Elaborar informe de la visita de inspección por el delegado",4,null,17,"Elaborar informe de la visita de inspección por el delegado",4,null,17,"Elaborar informe de la visita de inspección por el delegado",4,null,17,"Elaborar informe de la visita de inspección por el delegado",4]
[18,"Revisar informe de la visita de inspección por el delegado",2,null,18,"Revisar informe de la visita de inspección por el delegado",2,null,18,"Revisar informe de la visita de inspección por el delegado",2,null,18,"Revisar informe de la visita de inspección por el delegado",2,null,18,"Revisar informe de la visita de inspección por el delegado",2,null,18,"Revisar informe de la visita de inspección por el delegado",2]
[19,"Revisión preliminar de informe de la visita de inspección Directora de Regulación y Control",2,null,19,"Revisión preliminar de informe de la visita de inspección Directora de Regulación y Control",2,null,19,"Revisión preliminar de informe de la visita de inspección Directora de Regulación y Control",2,null,19,"Revisión preliminar de informe de la visita de inspección Directora de Regulación y Control",2,null,19,"Revisión preliminar de informe de la visita de inspección Directora de Regulación y Control",2,null,19,"Revisión preliminar de informe de la visita de inspección Directora de Regulación y Control",2]
[20,"Revisar informe por parte de la Coordinación General Técnica",3,null,20,"Revisar informe por parte de la Coordinación General Técnica",3,null,20,"Revisar informe por parte de la Coordinación General Técnica",3,null,20,"Revisar informe por parte de la Coordinación General Técnica",3,null,20,"Revisar informe por parte de la Coordinación General Técnica",3,null,20,"Revisar informe por parte de la Coordinación General Técnica",3]
[21,"Realizar informe de acreditación - Analista de Regulación y Control",2,null,21,"Realizar informe de acreditación - Analista de Regulación y Control",2,null,21,"Realizar informe de acreditación - Analista de Regulación y Control",2,null,21,"Realizar informe de acreditación - Analista de Regulación y Control",2,null,21,"Realizar informe de acreditación - Analista de Regulación y Control",2,null,21,"Realizar informe de acreditación - Analista de Regulación y Control",2]
[22,"Revisión preliminar de informe de acreditación - Directora de Regulación y Control",2,null,22,"Revisión preliminar de informe de acreditación - Directora de Regulación y Control",2,null,22,"Revisión preliminar de informe de acreditación - Directora de Regulación y Control",2,null,22,"Revisión preliminar de informe de acreditación - Directora de Regulación y Control",2,null,22,"Revisión preliminar de informe de acreditación - Directora de Regulación y Control",2,null,22,"Revisión preliminar de informe de acreditación - Directora de Regulación y Control",2]
[23,"Revisar informe de acreditación parte de la Coordinadora General Técnica",3,null,23,"Revisar informe de acreditación parte de la Coordinadora General Técnica",3,null,23,"Revisar informe de acreditación parte de la Coordinadora General Técnica",3,null,23,"Revisar informe de acreditación parte de la Coordinadora General Técnica",3,null,23,"Revisar informe de acreditación parte de la Coordinadora General Técnica",3,null,23,"Revisar informe de acreditación parte de la Coordinadora General Técnica",3]
[24,"Revisar y sumillar - Director Ejecutivo",0.55000000000000004,null,24,"Revisar y sumillar - Director Ejecutivo",0.55000000000000004,null,24,"Revisar y sumillar - Director Ejecutivo",0.55000000000000004,null,24,"Revisar y sumillar - Director Ejecutivo",0.55000000000000004,null,24,"Revisar y sumillar - Director Ejecutivo",0.55000000000000004,null,24,"Revisar y sumillar - Director Ejecutivo",0.55000000000000004]
[25,"Elaborar la resolución - Abogado",16,null,25,"Elaborar la resolución - Abogado",16,null,25,"Elaborar la resolución - Abogado",16,null,25,"Elaborar la resolución - Abogado",16,null,25,"Elaborar la resolución - Abogado",16,null,25,"Elaborar la resolución - Abogado",16]
[26,"Revisión de resolución - Director de Asesoría Jurídica",16,null,26,"Revisión de resolución - Director de Asesoría Jurídica",16,null,26,"Revisión de resolución - Director de Asesoría Jurídica",16,null,26,"Revisión de resolución - Director de Asesoría Jurídica",16,null,26,"Revisión de resolución - Director de Asesoría Jurídica",16,null,26,"Revisión de resolución - Director de Asesoría Jurídica",16]
[27,"Revisar resolución - Director Ejecutivo",8,null,27,"Revisar resolución - Director Ejecutivo",8,null,27,"Revisar resolución - Director Ejecutivo",8,null,27,"Revisar resolución - Director Ejecutivo",8,null,27,"Revisar resolución - Director Ejecutivo",8,null,27,"Revisar resolución - Director Ejecutivo",8]
[28,"Elaborar de QR",5,null,28,"Elaborar de QR",5,null,28,"Elaborar de QR",5,null,28,"Elaborar de QR",5,null,28,"Elaborar de QR",5,null,28,"Elaborar de QR",5]
[29,"Elaborar de Certificados",5,null,29,"Elaborar de Certificados",5,null,29,"Elaborar de Certificados",5,null,29,"Elaborar de Certificados",5,null,29,"Elaborar de Certificados",5,null,29,"Elaborar de Certificados",5]
[30,"Receptar la emisión de la resolución y certificados",48,null,30,"Receptar la emisión de la resolución y certificados",48,null,30,"Receptar la emisión de la resolución y certificados",48,null,30,"Receptar la emisión de la resolución y certificados",48,null,30,"Receptar la emisión de la resolución y certificados",48,null,30,"Receptar la emisión de la resolución y certificados",48]
[31,"Entregar resolución y certificados para el establecimientos de salud",60,null,31,"Entregar resolución y certificados para el establecimientos de salud",60,null,31,"Entregar resolución y certificados para el establecimientos de salud",60,null,31,"Entregar resolución y certificados para el establecimientos de salud",60,null,31,"Entregar resolución y certificados para el establecimientos de salud",60,null,31,"Entregar resolución y certificados para el establecimientos de salud",60]
[null,"SUMATORIA ACTIVIDADES",{"$f":"SUM(C4:C34)","v":574},null,null,"SUMATORIA ACTIVIDADES",{"$f":"SUM(G4:G34)","v":574},null,null,"SUMATORIA ACTIVIDADES",{"$f":"SUM(K4:K34)","v":574},null,null,"SUMATORIA ACTIVIDADES",{"$f":"SUM(O4:O34)","v":574},null,null,"SUMATORIA ACTIVIDADES",{"$f":"SUM(S4:S34)","v":574},null,null,"SUMATORIA ACTIVIDADES",{"$f":"SUM(W4:W34)","v":574}]
[]
[]
[]
["TRÁMITE:","Solicitud de Acreditación de Banco de Tejidos - Almacenamiento temporal y definitivo de tejidos importados",null,null,"TRÁMITE:","Solicitud de Acreditación de Banco de Sangre de Cordón Umbilical",null,null,"TRÁMITE:","Solicitud de Acreditación de laboratorios de HLA para trasplante.",null,null,"TRÁMITE:","Solicitud de Acreditación de establecimientos de salud y sus profesionales de salud para programa de trasplante cardíaco",null,null,"TRÁMITE:","Solicitud de Acreditación de establecimientos de salud y sus profesionales de salud para programa de trasplante pulmonar.",null,null,"TRÁMITE:","Solicitud de Reacreditación de establecimientos de salud y sus profesionales de salud para programa de trasplante renal"]
["NO.","ACTIVIDAD","TIEMPO (HORAS)",null,"NO.","ACTIVIDAD","TIEMPO (HORAS)",null,"NO.","ACTIVIDAD","TIEMPO (HORAS)",null,"NO.","ACTIVIDAD","TIEMPO (HORAS)",null,"NO.","ACTIVIDAD","TIEMPO (HORAS)",null,"NO.","ACTIVIDAD","TIEMPO (HORAS)"]
["<","Receptar la solicitud para acreditación del establecimiento de salud.",0.15,null,1,"Receptar la solicitud para acreditación del establecimiento de salud.",0.15,null,1,"Receptar la solicitud para acreditación del establecimiento de salud.",0.15,null,1,"Receptar la solicitud para acreditación del establecimiento de salud.",0.15,null,1,"Receptar la solicitud para acreditación del establecimiento de salud.",0.15,null,1,"Receptar la solicitud para acreditación del establecimiento de salud.",0.15]
[2,"Revisar la documentación previa.",4,null,2,"Revisar la documentación previa.",4,null,2,"Revisar la documentación previa.",4,null,2,"Revisar la documentación previa.",4,null,2,"Revisar la documentación previa.",4,null,2,"Revisar la documentación previa.",4]
[3,"Revisar la documentación para acreditación por parte del Analista Zonal.",8,null,3,"Revisar la documentación para acreditación por parte del Analista Zonal.",8,null,3,"Revisar la documentación para acreditación por parte del Analista Zonal.",8,null,3,"Revisar la documentación para acreditación por parte del Analista Zonal.",8,null,3,"Revisar la documentación para acreditación por parte del Analista Zonal.",8,null,3,"Revisar la documentación para acreditación por parte del Analista Zonal.",8]
[4,"Verificar la documentación completa para acreditación por parte de la Analista Zonal ",8,null,4,"Verificar la documentación completa para acreditación por parte de la Analista Zonal ",8,null,4,"Verificar la documentación completa para acreditación por parte de la Analista Zonal ",8,null,4,"Verificar la documentación completa para acreditación por parte de la Analista Zonal ",8,null,4,"Verificar la documentación completa para acreditación por parte de la Analista Zonal ",8,null,4,"Verificar la documentación completa para acreditación por parte de la Analista Zonal ",8]
[5,"Receptar la documentación por parte del Analista de Regulación y Control Nacional",2,null,5,"Receptar la documentación por parte del Analista de Regulación y Control Nacional",2,null,5,"Receptar la documentación por parte del Analista de Regulación y Control Nacional",2,null,5,"Receptar la documentación por parte del Analista de Regulación y Control Nacional",2,null,5,"Receptar la documentación por parte del Analista de Regulación y Control Nacional",2,null,5,"Receptar la documentación por parte del Analista de Regulación y Control Nacional",2]
[6,"Elaborar informe para aprobación de acreditación - Analista de Regulación y Control Nacional",12,null,6,"Elaborar informe para aprobación de acreditación - Analista de Regulación y Control Nacional",12,null,6,"Elaborar informe para aprobación de acreditación - Analista de Regulación y Control Nacional",12,null,6,"Elaborar informe para aprobación de acreditación - Analista de Regulación y Control Nacional",12,null,6,"Elaborar informe para aprobación de acreditación - Analista de Regulación y Control Nacional",12,null,6,"Elaborar informe para aprobación de acreditación - Analista de Regulación y Control Nacional",12]
[7,"Revisión de informe Directora de Regulación",2,null,7,"Revisión de informe Directora de Regulación",2,null,7,"Revisión de informe Directora de Regulación",2,null,7,"Revisión de informe Directora de Regulación",2,null,7,"Revisión de informe Directora de Regulación",2,null,7,"Revisión de informe Directora de Regulación",2]
[8,"Revisión de informe Coordinadora General Técnica",2,null,8,"Revisión de informe Coordinadora General Técnica",2,null,8,"Revisión de informe Coordinadora General Técnica",2,null,8,"Revisión de informe Coordinadora General Técnica",2,null,8,"Revisión de informe Coordinadora General Técnica",2,null,8,"Revisión de informe Coordinadora General Técnica",2]
[9,"Preparar respuesta para el establecimiento de salud de solicitud de acreditación",3,null,9,"Preparar respuesta para el establecimiento de salud de solicitud de acreditación",3,null,9,"Preparar respuesta para el establecimiento de salud de solicitud de acreditación",3,null,9,"Preparar respuesta para el establecimiento de salud de solicitud de acreditación",3,null,9,"Preparar respuesta para el establecimiento de salud de solicitud de acreditación",3,null,9,"Preparar respuesta para el establecimiento de salud de solicitud de acreditación",3]
[10,"Recepción de informe",0.15,null,10,"Recepción de informe",0.15,null,10,"Recepción de informe",0.15,null,10,"Recepción de informe",0.15,null,10,"Recepción de informe",0.15,null,10,"Recepción de informe",0.15]
[11,"Sumilla de documentación",0.15,null,11,"Sumilla de documentación",0.15,null,11,"Sumilla de documentación",0.15,null,11,"Sumilla de documentación",0.15,null,11,"Sumilla de documentación",0.15,null,11,"Sumilla de documentación",0.15]
[12,"Recepción de documentación desde el establecimiento de salud para la continuación del trámite - siguiente fase",240,null,12,"Recepción de documentación desde el establecimiento de salud para la continuación del trámite - siguiente fase",240,null,12,"Recepción de documentación desde el establecimiento de salud para la continuación del trámite - siguiente fase",240,null,12,"Recepción de documentación desde el establecimiento de salud para la continuación del trámite - siguiente fase",240,null,12,"Recepción de documentación desde el establecimiento de salud para la continuación del trámite - siguiente fase",240,null,12,"Recepción de documentación desde el establecimiento de salud para la continuación del trámite - siguiente fase",240]
[13,"Revisar documentación para proceso de acreditación - Analista de Regulación y Control Nacional",60,null,13,"Revisar documentación para proceso de acreditación - Analista de Regulación y Control Nacional",60,null,13,"Revisar documentación para proceso de acreditación - Analista de Regulación y Control Nacional",60,null,13,"Revisar documentación para proceso de acreditación - Analista de Regulación y Control Nacional",60,null,13,"Revisar documentación para proceso de acreditación - Analista de Regulación y Control Nacional",60,null,13,"Revisar documentación para proceso de acreditación - Analista de Regulación y Control Nacional",60]
[14,"Emitir respuesta para inicio de proceso de visita de inspección",24,null,14,"Emitir respuesta para inicio de proceso de visita de inspección",24,null,14,"Emitir respuesta para inicio de proceso de visita de inspección",24,null,14,"Emitir respuesta para inicio de proceso de visita de inspección",24,null,14,"Emitir respuesta para inicio de proceso de visita de inspección",24,null,14,"Emitir respuesta para inicio de proceso de visita de inspección",24]
[15,"Planificación de la visita de inspección e invitación al establecimiento de salud",8,null,15,"Planificación de la visita de inspección e invitación al establecimiento de salud",8,null,15,"Planificación de la visita de inspección e invitación al establecimiento de salud",8,null,15,"Planificación de la visita de inspección e invitación al establecimiento de salud",8,null,15,"Planificación de la visita de inspección e invitación al establecimiento de salud",8,null,15,"Planificación de la visita de inspección e invitación al establecimiento de salud",8]
[16,"Visita de inspección ",24,null,16,"Visita de inspección ",24,null,16,"Visita de inspección ",24,null,16,"Visita de inspección ",24,null,16,"Visita de inspección ",24,null,16,"Visita de inspección ",24]
[17,"Elaborar informe de la visita de inspección por el delegado",4,null,17,"Elaborar informe de la visita de inspección por el delegado",4,null,17,"Elaborar informe de la visita de inspección por el delegado",4,null,17,"Elaborar informe de la visita de inspección por el delegado",4,null,17,"Elaborar informe de la visita de inspección por el delegado",4,null,17,"Elaborar informe de la visita de inspección por el delegado",4]
[18,"Revisar informe de la visita de inspección por el delegado",2,null,18,"Revisar informe de la visita de inspección por el delegado",2,null,18,"Revisar informe de la visita de inspección por el delegado",2,null,18,"Revisar informe de la visita de inspección por el delegado",2,null,18,"Revisar informe de la visita de inspección por el delegado",2,null,18,"Revisar informe de la visita de inspección por el delegado",2]
[19,"Revisión preliminar de informe de la visita de inspección Directora de Regulación y Control",2,null,19,"Revisión preliminar de informe de la visita de inspección Directora de Regulación y Control",2,null,19,"Revisión preliminar de informe de la visita de inspección Directora de Regulación y Control",2,null,19,"Revisión preliminar de informe de la visita de inspección Directora de Regulación y Control",2,null,19,"Revisión preliminar de informe de la visita de inspección Directora de Regulación y Control",2,null,19,"Revisión preliminar de informe de la visita de inspección Directora de Regulación y Control",2]
[20,"Revisar informe por parte de la Coordinación General Técnica",3,null,20,"Revisar informe por parte de la Coordinación General Técnica",3,null,20,"Revisar informe por parte de la Coordinación General Técnica",3,null,20,"Revisar informe por parte de la Coordinación General Técnica",3,null,20,"Revisar informe por parte de la Coordinación General Técnica",3,null,20,"Revisar informe por parte de la Coordinación General Técnica",3]
[21,"Realizar informe de acreditación - Analista de Regulación y Control",2,null,21,"Realizar informe de acreditación - Analista de Regulación y Control",2,null,21,"Realizar informe de acreditación - Analista de Regulación y Control",2,null,21,"Realizar informe de acreditación - Analista de Regulación y Control",2,null,21,"Realizar informe de acreditación - Analista de Regulación y Control",2,null,21,"Realizar informe de acreditación - Analista de Regulación y Control",2]
[22,"Revisión preliminar de informe de acreditación - Directora de Regulación y Control",2,null,22,"Revisión preliminar de informe de acreditación - Directora de Regulación y Control",2,null,22,"Revisión preliminar de informe de acreditación - Directora de Regulación y Control",2,null,22,"Revisión preliminar de informe de acreditación - Directora de Regulación y Control",2,null,22,"Revisión preliminar de informe de acreditación - Directora de Regulación y Control",2,null,22,"Revisión preliminar de informe de acreditación - Directora de Regulación y Control",2]
[23,"Revisar informe de acreditación parte de la Coordinadora General Técnica",3,null,23,"Revisar informe de acreditación parte de la Coordinadora General Técnica",3,null,23,"Revisar informe de acreditación parte de la Coordinadora General Técnica",3,null,23,"Revisar informe de acreditación parte de la Coordinadora General Técnica",3,null,23,"Revisar informe de acreditación parte de la Coordinadora General Técnica",3,null,23,"Revisar informe de acreditación parte de la Coordinadora General Técnica",3]
[24,"Revisar y sumillar - Director Ejecutivo",0.55000000000000004,null,24,"Revisar y sumillar - Director Ejecutivo",0.55000000000000004,null,24,"Revisar y sumillar - Director Ejecutivo",0.55000000000000004,null,24,"Revisar y sumillar - Director Ejecutivo",0.55000000000000004,null,24,"Revisar y sumillar - Director Ejecutivo",0.55000000000000004,null,24,"Revisar y sumillar - Director Ejecutivo",0.55000000000000004]
[25,"Elaborar la resolución - Abogado",16,null,25,"Elaborar la resolución - Abogado",16,null,25,"Elaborar la resolución - Abogado",16,null,25,"Elaborar la resolución - Abogado",16,null,25,"Elaborar la resolución - Abogado",16,null,25,"Elaborar la resolución - Abogado",16]
[26,"Revisión de resolución - Director de Asesoría Jurídica",16,null,26,"Revisión de resolución - Director de Asesoría Jurídica",16,null,26,"Revisión de resolución - Director de Asesoría Jurídica",16,null,26,"Revisión de resolución - Director de Asesoría Jurídica",16,null,26,"Revisión de resolución - Director de Asesoría Jurídica",16,null,26,"Revisión de resolución - Director de Asesoría Jurídica",16]
[27,"Revisar resolución - Director Ejecutivo",8,null,27,"Revisar resolución - Director Ejecutivo",8,null,27,"Revisar resolución - Director Ejecutivo",8,null,27,"Revisar resolución - Director Ejecutivo",8,null,27,"Revisar resolución - Director Ejecutivo",8,null,27,"Revisar resolución - Director Ejecutivo",8]
[28,"Elaborar de QR",5,null,28,"Elaborar de QR",5,null,28,"Elaborar de QR",5,null,28,"Elaborar de QR",5,null,28,"Elaborar de QR",5,null,28,"Elaborar de QR",5]
[29,"Elaborar de Certificados",5,null,29,"Elaborar de Certificados",5,null,29,"Elaborar de Certificados",5,null,29,"Elaborar de Certificados",5,null,29,"Elaborar de Certificados",5,null,29,"Elaborar de Certificados",5]
[30,"Receptar la emisión de la resolución y certificados",48,null,30,"Receptar la emisión de la resolución y certificados",48,null,30,"Receptar la emisión de la resolución y certificados",48,null,30,"Receptar la emisión de la resolución y certificados",48,null,30,"Receptar la emisión de la resolución y certificados",48,null,30,"Receptar la emisión de la resolución y certificados",48]
[31,"Entregar resolución y certificados para el establecimientos de salud",60,null,31,"Entregar resolución y certificados para el establecimientos de salud",60,null,31,"Entregar resolución y certificados para el establecimientos de salud",60,null,31,"Entregar resolución y certificados para el establecimientos de salud",60,null,31,"Entregar resolución y certificados para el establecimientos de salud",60,null,31,"Entregar resolución y certificados para el establecimientos de salud",60]
[null,"SUMATORIA ACTIVIDADES",{"$f":"SUM(C41:C71)","v":574},null,null,"SUMATORIA ACTIVIDADES",{"$f":"SUM(G41:G71)","v":574},null,null,"SUMATORIA ACTIVIDADES",{"$f":"SUM(K41:K71)","v":574},null,null,"SUMATORIA ACTIVIDADES",{"$f":"SUM(O41:O71)","v":574},null,null,"SUMATORIA ACTIVIDADES",{"$f":"SUM(S41:S71)","v":574},null,null,"SUMATORIA ACTIVIDADES",{"$f":"SUM(W41:W71)","v":574}]
[]
[]
[]
["TRÁMITE:","Solicitud de Reacreditación de establecimientos de salud y sus profesionales de salud para programa de trasplante hepático",null,null,"TRÁMITE:","Solicitud de Reacreditación de establecimientos de salud y sus profesionales de salud para programa de trasplante de progenitores hematopoyéticos",null,null,"TRÁMITE:","Solicitud de Reacreditación de establecimientos de salud y sus profesionales de salud para programa de trasplante de córneas",null,null,"TRÁMITE:","Solicitud de Reacreditación de establecimientos de salud y sus profesionales de salud para programa de trasplante de tejido osteo muscular ligamentoso",null,null,"TRÁMITE:","Solicitud de Reacreditación de establecimientos de salud y sus profesionales de salud para programa de ablación y procuración de glóbulos oculares",null,null,"TRÁMITE:","Solicitud de Reacreditación de Banco de Tejidos - Almacenamiento temporal y definitivo de tejidos importados"]
["NO.","ACTIVIDAD","TIEMPO (HORAS)",null,"NO.","ACTIVIDAD","TIEMPO (HORAS)",null,"NO.","ACTIVIDAD","TIEMPO (HORAS)",null,"NO.","ACTIVIDAD","TIEMPO (HORAS)",null,"NO.","ACTIVIDAD","TIEMPO (HORAS)",null,"NO.","ACTIVIDAD","TIEMPO (HORAS)"]
["<","Receptar la solicitud para acreditación del establecimiento de salud.",0.15,null,1,"Receptar la solicitud para acreditación del establecimiento de salud.",0.15,null,1,"Receptar la solicitud para acreditación del establecimiento de salud.",0.15,null,1,"Receptar la solicitud para acreditación del establecimiento de salud.",0.15,null,1,"Receptar la solicitud para acreditación del establecimiento de salud.",0.15,null,1,"Receptar la solicitud para acreditación del establecimiento de salud.",0.15]
[2,"Revisar la documentación previa.",4,null,2,"Revisar la documentación previa.",4,null,2,"Revisar la documentación previa.",4,null,2,"Revisar la documentación previa.",4,null,2,"Revisar la documentación previa.",4,null,2,"Revisar la documentación previa.",4]
[3,"Revisar la documentación para acreditación por parte del Analista Zonal.",8,null,3,"Revisar la documentación para acreditación por parte del Analista Zonal.",8,null,3,"Revisar la documentación para acreditación por parte del Analista Zonal.",8,null,3,"Revisar la documentación para acreditación por parte del Analista Zonal.",8,null,3,"Revisar la documentación para acreditación por parte del Analista Zonal.",8,null,3,"Revisar la documentación para acreditación por parte del Analista Zonal.",8]
[4,"Verificar la documentación completa para acreditación por parte de la Analista Zonal ",8,null,4,"Verificar la documentación completa para acreditación por parte de la Analista Zonal ",8,null,4,"Verificar la documentación completa para acreditación por parte de la Analista Zonal ",8,null,4,"Verificar la documentación completa para acreditación por parte de la Analista Zonal ",8,null,4,"Verificar la documentación completa para acreditación por parte de la Analista Zonal ",8,null,4,"Verificar la documentación completa para acreditación por parte de la Analista Zonal ",8]
[5,"Receptar la documentación por parte del Analista de Regulación y Control Nacional",2,null,5,"Receptar la documentación por parte del Analista de Regulación y Control Nacional",2,null,5,"Receptar la documentación por parte del Analista de Regulación y Control Nacional",2,null,5,"Receptar la documentación por parte del Analista de Regulación y Control Nacional",2,null,5,"Receptar la documentación por parte del Analista de Regulación y Control Nacional",2,null,5,"Receptar la documentación por parte del Analista de Regulación y Control Nacional",2]
[6,"Elaborar informe para aprobación de acreditación - Analista de Regulación y Control Nacional",12,null,6,"Elaborar informe para aprobación de acreditación - Analista de Regulación y Control Nacional",12,null,6,"Elaborar informe para aprobación de acreditación - Analista de Regulación y Control Nacional",12,null,6,"Elaborar informe para aprobación de acreditación - Analista de Regulación y Control Nacional",12,null,6,"Elaborar informe para aprobación de acreditación - Analista de Regulación y Control Nacional",12,null,6,"Elaborar informe para aprobación de acreditación - Analista de Regulación y Control Nacional",12]
[7,"Revisión de informe Directora de Regulación",2,null,7,"Revisión de informe Directora de Regulación",2,null,7,"Revisión de informe Directora de Regulación",2,null,7,"Revisión de informe Directora de Regulación",2,null,7,"Revisión de informe Directora de Regulación",2,null,7,"Revisión de informe Directora de Regulación",2]
[8,"Revisión de informe Coordinadora General Técnica",2,null,8,"Revisión de informe Coordinadora General Técnica",2,null,8,"Revisión de informe Coordinadora General Técnica",2,null,8,"Revisión de informe Coordinadora General Técnica",2,null,8,"Revisión de informe Coordinadora General Técnica",2,null,8,"Revisión de informe Coordinadora General Técnica",2]
[9,"Preparar respuesta para el establecimiento de salud de solicitud de acreditación",3,null,9,"Preparar respuesta para el establecimiento de salud de solicitud de acreditación",3,null,9,"Preparar respuesta para el establecimiento de salud de solicitud de acreditación",3,null,9,"Preparar respuesta para el establecimiento de salud de solicitud de acreditación",3,null,9,"Preparar respuesta para el establecimiento de salud de solicitud de acreditación",3,null,9,"Preparar respuesta para el establecimiento de salud de solicitud de acreditación",3]
[10,"Recepción de informe",0.15,null,10,"Recepción de informe",0.15,null,10,"Recepción de informe",0.15,null,10,"Recepción de informe",0.15,null,10,"Recepción de informe",0.15,null,10,"Recepción de informe",0.15]
[11,"Sumilla de documentación",0.15,null,11,"Sumilla de documentación",0.15,null,11,"Sumilla de documentación",0.15,null,11,"Sumilla de documentación",0.15,null,11,"Sumilla de documentación",0.15,null,11,"Sumilla de documentación",0.15]
[12,"Recepción de documentación desde el establecimiento de salud para la continuación del trámite - siguiente fase",240,null,12,"Recepción de documentación desde el establecimiento de salud para la continuación del trámite - siguiente fase",240,null,12,"Recepción de documentación desde el establecimiento de salud para la continuación del trámite - siguiente fase",240,null,12,"Recepción de documentación desde el establecimiento de salud para la continuación del trámite - siguiente fase",240,null,12,"Recepción de documentación desde el establecimiento de salud para la continuación del trámite - siguiente fase",240,null,12,"Recepción de documentación desde el establecimiento de salud para la continuación del trámite - siguiente fase",240]
[13,"Revisar documentación para proceso de acreditación - Analista de Regulación y Control Nacional",60,null,13,"Revisar documentación para proceso de acreditación - Analista de Regulación y Control Nacional",60,null,13,"Revisar documentación para proceso de acreditación - Analista de Regulación y Control Nacional",60,null,13,"Revisar documentación para proceso de acreditación - Analista de Regulación y Control Nacional",60,null,13,"Revisar documentación para proceso de acreditación - Analista de Regulación y Control Nacional",60,null,13,"Revisar documentación para proceso de acreditación - Analista de Regulación y Control Nacional",60]
[14,"Emitir respuesta para inicio de proceso de visita de inspección",24,null,14,"Emitir respuesta para inicio de proceso de visita de inspección",24,null,14,"Emitir respuesta para inicio de proceso de visita de inspección",24,null,14,"Emitir respuesta para inicio de proceso de visita de inspección",24,null,14,"Emitir respuesta para inicio de proceso de visita de inspección",24,null,14,"Emitir respuesta para inicio de proceso de visita de inspección",24]
[15,"Planificación de la visita de inspección e invitación al establecimiento de salud",8,null,15,"Planificación de la visita de inspección e invitación al establecimiento de salud",8,null,15,"Planificación de la visita de inspección e invitación al establecimiento de salud",8,null,15,"Planificación de la visita de inspección e invitación al establecimiento de salud",8,null,15,"Planificación de la visita de inspección e invitación al establecimiento de salud",8,null,15,"Planificación de la visita de inspección e invitación al establecimiento de salud",8]
[16,"Visita de inspección ",24,null,16,"Visita de inspección ",24,null,16,"Visita de inspección ",24,null,16,"Visita de inspección ",24,null,16,"Visita de inspección ",24,null,16,"Visita de inspección ",24]
[17,"Elaborar informe de la visita de inspección por el delegado",4,null,17,"Elaborar informe de la visita de inspección por el delegado",4,null,17,"Elaborar informe de la visita de inspección por el delegado",4,null,17,"Elaborar informe de la visita de inspección por el delegado",4,null,17,"Elaborar informe de la visita de inspección por el delegado",4,null,17,"Elaborar informe de la visita de inspección por el delegado",4]
[18,"Revisar informe de la visita de inspección por el delegado",2,null,18,"Revisar informe de la visita de inspección por el delegado",2,null,18,"Revisar informe de la visita de inspección por el delegado",2,null,18,"Revisar informe de la visita de inspección por el delegado",2,null,18,"Revisar informe de la visita de inspección por el delegado",2,null,18,"Revisar informe de la visita de inspección por el delegado",2]
[19,"Revisión preliminar de informe de la visita de inspección Directora de Regulación y Control",2,null,19,"Revisión preliminar de informe de la visita de inspección Directora de Regulación y Control",2,null,19,"Revisión preliminar de informe de la visita de inspección Directora de Regulación y Control",2,null,19,"Revisión preliminar de informe de la visita de inspección Directora de Regulación y Control",2,null,19,"Revisión preliminar de informe de la visita de inspección Directora de Regulación y Control",2,null,19,"Revisión preliminar de informe de la visita de inspección Directora de Regulación y Control",2]
[20,"Revisar informe por parte de la Coordinación General Técnica",3,null,20,"Revisar informe por parte de la Coordinación General Técnica",3,null,20,"Revisar informe por parte de la Coordinación General Técnica",3,null,20,"Revisar informe por parte de la Coordinación General Técnica",3,null,20,"Revisar informe por parte de la Coordinación General Técnica",3,null,20,"Revisar informe por parte de la Coordinación General Técnica",3]
[21,"Realizar informe de acreditación - Analista de Regulación y Control",2,null,21,"Realizar informe de acreditación - Analista de Regulación y Control",2,null,21,"Realizar informe de acreditación - Analista de Regulación y Control",2,null,21,"Realizar informe de acreditación - Analista de Regulación y Control",2,null,21,"Realizar informe de acreditación - Analista de Regulación y Control",2,null,21,"Realizar informe de acreditación - Analista de Regulación y Control",2]
[22,"Revisión preliminar de informe de acreditación - Directora de Regulación y Control",2,null,22,"Revisión preliminar de informe de acreditación - Directora de Regulación y Control",2,null,22,"Revisión preliminar de informe de acreditación - Directora de Regulación y Control",2,null,22,"Revisión preliminar de informe de acreditación - Directora de Regulación y Control",2,null,22,"Revisión preliminar de informe de acreditación - Directora de Regulación y Control",2,null,22,"Revisión preliminar de informe de acreditación - Directora de Regulación y Control",2]
[23,"Revisar informe de acreditación parte de la Coordinadora General Técnica",3,null,23,"Revisar informe de acreditación parte de la Coordinadora General Técnica",3,null,23,"Revisar informe de acreditación parte de la Coordinadora General Técnica",3,null,23,"Revisar informe de acreditación parte de la Coordinadora General Técnica",3,null,23,"Revisar informe de acreditación parte de la Coordinadora General Técnica",3,null,23,"Revisar informe de acreditación parte de la Coordinadora General Técnica",3]
[24,"Revisar y sumillar - Director Ejecutivo",0.55000000000000004,null,24,"Revisar y sumillar - Director Ejecutivo",0.55000000000000004,null,24,"Revisar y sumillar - Director Ejecutivo",0.55000000000000004,null,24,"Revisar y sumillar - Director Ejecutivo",0.55000000000000004,null,24,"Revisar y sumillar - Director Ejecutivo",0.55000000000000004,null,24,"Revisar y sumillar - Director Ejecutivo",0.55000000000000004]
[25,"Elaborar la resolución - Abogado",16,null,25,"Elaborar la resolución - Abogado",16,null,25,"Elaborar la resolución - Abogado",16,null,25,"Elaborar la resolución - Abogado",16,null,25,"Elaborar la resolución - Abogado",16,null,25,"Elaborar la resolución - Abogado",16]
[26,"Revisión de resolución - Director de Asesoría Jurídica",16,null,26,"Revisión de resolución - Director de Asesoría Jurídica",16,null,26,"Revisión de resolución - Director de Asesoría Jurídica",16,null,26,"Revisión de resolución - Director de Asesoría Jurídica",16,null,26,"Revisión de resolución - Director de Asesoría Jurídica",16,null,26,"Revisión de resolución - Director de Asesoría Jurídica",16]
[27,"Revisar resolución - Director Ejecutivo",8,null,27,"Revisar resolución - Director Ejecutivo",8,null,27,"Revisar resolución - Director Ejecutivo",8,null,27,"Revisar resolución - Director Ejecutivo",8,null,27,"Revisar resolución - Director Ejecutivo",8,null,27,"Revisar resolución - Director Ejecutivo",8]
[28,"Elaborar de QR",5,null,28,"Elaborar de QR",5,null,28,"Elaborar de QR",5,null,28,"Elaborar de QR",5,null,28,"Elaborar de QR",5,null,28,"Elaborar de QR",5]
[29,"Elaborar de Certificados",5,null,29,"Elaborar de Certificados",5,null,29,"Elaborar de Certificados",5,null,29,"Elaborar de Certificados",5,null,29,"Elaborar de Certificados",5,null,29,"Elaborar de Certificados",5]
[30,"Receptar la emisión de la resolución y certificados",48,null,30,"Receptar la emisión de la resolución y certificados",48,null,30,"Receptar la emisión de la resolución y certificados",48,null,30,"Receptar la emisión de la resolución y certificados",48,null,30,"Receptar la emisión de la resolución y certificados",48,null,30,"Receptar la emisión de la resolución y certificados",48]
[31,"Entregar resolución y certificados para el establecimientos de salud",60,null,31,"Entregar resolución y certificados para el establecimientos de salud",60,null,31,"Entregar resolución y certificados para el establecimientos de salud",60,null,31,"Entregar resolución y certificados para el establecimientos de salud",60,null,31,"Entregar resolución y certificados para el establecimientos de salud",60,null,31,"Entregar resolución y certificados para el establecimientos de salud",60]
[null,"SUMATORIA ACTIVIDADES",{"$f":"SUM(C78:C108)","v":574},null,null,"SUMATORIA ACTIVIDADES",{"$f":"SUM(G78:G108)","v":574},null,null,"SUMATORIA ACTIVIDADES",{"$f":"SUM(K78:K108)","v":574},null,null,"SUMATORIA ACTIVIDADES",{"$f":"SUM(O78:O108)","v":574},null,null,"SUMATORIA ACTIVIDADES",{"$f":"SUM(S78:S108)","v":574},null,null,"SUMATORIA ACTIVIDADES",{"$f":"SUM(W78:W108)","v":574}]
[]
[]
["TRÁMITE:","Solicitud de Reacreditación de Banco de Sangre de Cordón Umbilical",null,null,"TRÁMITE:","Solicitud de Reacreditación de laboratorios de HLA para trasplante",null,null,"TRÁMITE:","Solicitud de Reacreditación de establecimientos de salud y sus profesionales de salud para programa de trasplante cardíaco",null,null,"TRÁMITE:","Solicitud de Reacreditación de establecimientos de salud y sus profesionales de salud para programa de trasplante pulmonar",null,null,"TRÁMITE:","Información de la actividad de Donación y Trasplante de Órganos, Tejidos y Células",null,null,"TRÁMITE:","Solicitud de Provisión de Tejido Osteo Muscular Ligamentoso (TOML) y piel para trasplante"]
["NO.","ACTIVIDAD","TIEMPO (HORAS)",null,"NO.","ACTIVIDAD","TIEMPO (HORAS)",null,"NO.","ACTIVIDAD","TIEMPO (HORAS)",null,"NO.","ACTIVIDAD","TIEMPO (HORAS)",null,"NO.","ACTIVIDAD","TIEMPO (HORAS)",null,"NO.","ACTIVIDAD","TIEMPO (HORAS)"]
["<","Receptar la solicitud para acreditación del establecimiento de salud.",0.15,null,1,"Receptar la solicitud para acreditación del establecimiento de salud.",0.15,null,1,"Receptar la solicitud para acreditación del establecimiento de salud.",0.15,null,1,"Receptar la solicitud para acreditación del establecimiento de salud.",0.15,null,1,"Recepción de solicitud por redes sociales ",1,null,1,"Recepcion de solicitud y documentos habilitantes físico o digital.  ",0.1]
[2,"Revisar la documentación previa.",4,null,2,"Revisar la documentación previa.",4,null,2,"Revisar la documentación previa.",4,null,2,"Revisar la documentación previa.",4,null,2,"Recepcion de solicitud mediante el sistema de tickets a nivel nacional ",0.2,null,2,"Registro de la solcitud en el sistema e-Delphyn ",0.25]
[3,"Revisar la documentación para acreditación por parte del Analista Zonal.",8,null,3,"Revisar la documentación para acreditación por parte del Analista Zonal.",8,null,3,"Revisar la documentación para acreditación por parte del Analista Zonal.",8,null,3,"Revisar la documentación para acreditación por parte del Analista Zonal.",8,null,3,"Recepción de solicitud de información a nivel zonal ",0.1,null,3,"Asignación del tejido ",0.4]
[4,"Verificar la documentación completa para acreditación por parte de la Analista Zonal ",8,null,4,"Verificar la documentación completa para acreditación por parte de la Analista Zonal ",8,null,4,"Verificar la documentación completa para acreditación por parte de la Analista Zonal ",8,null,4,"Verificar la documentación completa para acreditación por parte de la Analista Zonal ",8,null,4,"Recepción de solicitud física ",0.1,null,4,"Despacho del tejido con documentos de respaldo ",0.1]
[5,"Receptar la documentación por parte del Analista de Regulación y Control Nacional",2,null,5,"Receptar la documentación por parte del Analista de Regulación y Control Nacional",2,null,5,"Receptar la documentación por parte del Analista de Regulación y Control Nacional",2,null,5,"Receptar la documentación por parte del Analista de Regulación y Control Nacional",2,null,5,"Reasignar a la dirección que corresponda la solicitud receptada  mediante redes sociales ",0.1,null,5,"Recepcion de certificado de implante del tejido con la información de la cirugia y evaluación de la calidad del tejido implantado ",0.1]
[6,"Elaborar informe para aprobación de acreditación - Analista de Regulación y Control Nacional",12,null,6,"Elaborar informe para aprobación de acreditación - Analista de Regulación y Control Nacional",12,null,6,"Elaborar informe para aprobación de acreditación - Analista de Regulación y Control Nacional",12,null,6,"Elaborar informe para aprobación de acreditación - Analista de Regulación y Control Nacional",12,null,6,"Reasignar a la dirección que corresponda la solicitud receptada  mediante el sistema de tickets a nivel nacional ",0.1,null,6,"Archivar el expediente  del tejido ",0.05]
[7,"Revisión de informe Directora de Regulación",2,null,7,"Revisión de informe Directora de Regulación",2,null,7,"Revisión de informe Directora de Regulación",2,null,7,"Revisión de informe Directora de Regulación",2,null,7,"Reasignar a la dirección que corresponda solicitud receptada a nivel zonal  ",0.1]
[8,"Revisión de informe Coordinadora General Técnica",2,null,8,"Revisión de informe Coordinadora General Técnica",2,null,8,"Revisión de informe Coordinadora General Técnica",2,null,8,"Revisión de informe Coordinadora General Técnica",2,null,8,"Reasignar a la dirección que corresponda solicitud receptada de forma física ",0.1]
[9,"Preparar respuesta para el establecimiento de salud de solicitud de acreditación",3,null,9,"Preparar respuesta para el establecimiento de salud de solicitud de acreditación",3,null,9,"Preparar respuesta para el establecimiento de salud de solicitud de acreditación",3,null,9,"Preparar respuesta para el establecimiento de salud de solicitud de acreditación",3,null,9,"Elaborar respuesta ",26]
[10,"Recepción de informe",0.15,null,10,"Recepción de informe",0.15,null,10,"Recepción de informe",0.15,null,10,"Recepción de informe",0.15,null,10,"Envio de respuesta al ciudadano ",12]
[11,"Sumilla de documentación",0.15,null,11,"Sumilla de documentación",0.15,null,11,"Sumilla de documentación",0.15,null,11,"Sumilla de documentación",0.15,null,11,"Cierre del caso ",0.2]
[12,"Recepción de documentación desde el establecimiento de salud para la continuación del trámite - siguiente fase",240,null,12,"Recepción de documentación desde el establecimiento de salud para la continuación del trámite - siguiente fase",240,null,12,"Recepción de documentación desde el establecimiento de salud para la continuación del trámite - siguiente fase",240,null,12,"Recepción de documentación desde el establecimiento de salud para la continuación del trámite - siguiente fase",240]
[13,"Revisar documentación para proceso de acreditación - Analista de Regulación y Control Nacional",60,null,13,"Revisar documentación para proceso de acreditación - Analista de Regulación y Control Nacional",60,null,13,"Revisar documentación para proceso de acreditación - Analista de Regulación y Control Nacional",60,null,13,"Revisar documentación para proceso de acreditación - Analista de Regulación y Control Nacional",60]
[14,"Emitir respuesta para inicio de proceso de visita de inspección",24,null,14,"Emitir respuesta para inicio de proceso de visita de inspección",24,null,14,"Emitir respuesta para inicio de proceso de visita de inspección",24,null,14,"Emitir respuesta para inicio de proceso de visita de inspección",24]
[15,"Planificación de la visita de inspección e invitación al establecimiento de salud",8,null,15,"Planificación de la visita de inspección e invitación al establecimiento de salud",8,null,15,"Planificación de la visita de inspección e invitación al establecimiento de salud",8,null,15,"Planificación de la visita de inspección e invitación al establecimiento de salud",8]
[16,"Visita de inspección ",24,null,16,"Visita de inspección ",24,null,16,"Visita de inspección ",24,null,16,"Visita de inspección ",24]
[17,"Elaborar informe de la visita de inspección por el delegado",4,null,17,"Elaborar informe de la visita de inspección por el delegado",4,null,17,"Elaborar informe de la visita de inspección por el delegado",4,null,17,"Elaborar informe de la visita de inspección por el delegado",4]
[18,"Revisar informe de la visita de inspección por el delegado",2,null,18,"Revisar informe de la visita de inspección por el delegado",2,null,18,"Revisar informe de la visita de inspección por el delegado",2,null,18,"Revisar informe de la visita de inspección por el delegado",2]
[19,"Revisión preliminar de informe de la visita de inspección Directora de Regulación y Control",2,null,19,"Revisión preliminar de informe de la visita de inspección Directora de Regulación y Control",2,null,19,"Revisión preliminar de informe de la visita de inspección Directora de Regulación y Control",2,null,19,"Revisión preliminar de informe de la visita de inspección Directora de Regulación y Control",2]
[20,"Revisar informe por parte de la Coordinación General Técnica",3,null,20,"Revisar informe por parte de la Coordinación General Técnica",3,null,20,"Revisar informe por parte de la Coordinación General Técnica",3,null,20,"Revisar informe por parte de la Coordinación General Técnica",3]
[21,"Realizar informe de acreditación - Analista de Regulación y Control",2,null,21,"Realizar informe de acreditación - Analista de Regulación y Control",2,null,21,"Realizar informe de acreditación - Analista de Regulación y Control",2,null,21,"Realizar informe de acreditación - Analista de Regulación y Control",2]
[22,"Revisión preliminar de informe de acreditación - Directora de Regulación y Control",2,null,22,"Revisión preliminar de informe de acreditación - Directora de Regulación y Control",2,null,22,"Revisión preliminar de informe de acreditación - Directora de Regulación y Control",2,null,22,"Revisión preliminar de informe de acreditación - Directora de Regulación y Control",2]
[23,"Revisar informe de acreditación parte de la Coordinadora General Técnica",3,null,23,"Revisar informe de acreditación parte de la Coordinadora General Técnica",3,null,23,"Revisar informe de acreditación parte de la Coordinadora General Técnica",3,null,23,"Revisar informe de acreditación parte de la Coordinadora General Técnica",3]
[24,"Revisar y sumillar - Director Ejecutivo",0.55000000000000004,null,24,"Revisar y sumillar - Director Ejecutivo",0.55000000000000004,null,24,"Revisar y sumillar - Director Ejecutivo",0.55000000000000004,null,24,"Revisar y sumillar - Director Ejecutivo",0.55000000000000004]
[25,"Elaborar la resolución - Abogado",16,null,25,"Elaborar la resolución - Abogado",16,null,25,"Elaborar la resolución - Abogado",16,null,25,"Elaborar la resolución - Abogado",16]
[26,"Revisión de resolución - Director de Asesoría Jurídica",16,null,26,"Revisión de resolución - Director de Asesoría Jurídica",16,null,26,"Revisión de resolución - Director de Asesoría Jurídica",16,null,26,"Revisión de resolución - Director de Asesoría Jurídica",16]
[27,"Revisar resolución - Director Ejecutivo",8,null,27,"Revisar resolución - Director Ejecutivo",8,null,27,"Revisar resolución - Director Ejecutivo",8,null,27,"Revisar resolución - Director Ejecutivo",8]
[28,"Elaborar de QR",5,null,28,"Elaborar de QR",5,null,28,"Elaborar de QR",5,null,28,"Elaborar de QR",5]
[29,"Elaborar de Certificados",5,null,29,"Elaborar de Certificados",5,null,29,"Elaborar de Certificados",5,null,29,"Elaborar de Certificados",5]
[30,"Receptar la emisión de la resolución y certificados",48,null,30,"Receptar la emisión de la resolución y certificados",48,null,30,"Receptar la emisión de la resolución y certificados",48,null,30,"Receptar la emisión de la resolución y certificados",48]
[31,"Entregar resolución y certificados para el establecimientos de salud",60,null,31,"Entregar resolución y certificados para el establecimientos de salud",60,null,31,"Entregar resolución y certificados para el establecimientos de salud",60,null,31,"Entregar resolución y certificados para el establecimientos de salud",60]
[null,"SUMATORIA ACTIVIDADES",{"$f":"SUM(C114:C144)","v":574},null,null,"SUMATORIA ACTIVIDADES",{"$f":"SUM(G114:G144)","v":574},null,null,"SUMATORIA ACTIVIDADES",{"$f":"SUM(K114:K144)","v":574},null,null,"SUMATORIA ACTIVIDADES",{"$f":"SUM(O114:O144)","v":574},null,null,"SUMATORIA ACTIVIDADES",{"$f":"SUM(S114:S144)","v":40},null,null,"SUMATORIA ACTIVIDADES",{"$f":"SUM(W114:W144)","v":1}]
[]
[]
[]
["TRÁMITE:","Asignación de Órganos para Pacientes en la Lista de espera única Nacional",null,null,"TRÁMITE:","Autorización para la importación y exportación de tejidos y células para trasplante",null,null,"TRÁMITE:","Autorización para la donación en vida",null,null,"TRÁMITE:","Autorización para la donación en vida tejidos",null,null,"TRÁMITE:","Ingreso a Lista de Espera Única Nacional - LEUN",null,null,"TRÁMITE:","Solicitud de Capacitación virtual"]
["NO.","ACTIVIDAD","TIEMPO (HORAS)",null,"NO.","ACTIVIDAD","TIEMPO (HORAS)",null,"NO.","ACTIVIDAD","TIEMPO (HORAS)",null,"NO.","ACTIVIDAD","TIEMPO (HORAS)",null,"NO.","ACTIVIDAD","TIEMPO (HORAS)",null,"NO.","ACTIVIDAD","TIEMPO (HORAS)"]
[1,"Coordinar pruebas de compatibilidad ",0.4,null,1,"Recepción de la solicitud de exportación de células provenientes de sangre de cordón umbilical destinadas a procedimientos de donación y trasplante ",1,null,1,"Recepción de la documentación de solicitud de autorización de donación en vida ",0.5,null,1,"Registro de consentimiento informado ",0.1,null,1,"Recepción de solicitud de ingreso a LEUN ",1.75,null,1,"Recepción de solicitud de capacitación ",0.1]
[2,"Traslado de muestras de sangre para pruebas de compatibilidad coordinaciones zonales",0.3,null,2,"Revisar la solicitud y los documentos de respaldo ",4,null,2,"Verificación de validez de los documentos ",20,null,2,"Evaluación del tejido (placenta y/o cabezas femorales) ",0.2,null,2,"Revisión de documentos habilitantes ",4,null,2,"Reasignación de solicitud a la dirección correspondiente ",0.3]
[3,"Elaboración de la matriz de asignación renal ",0.3,null,3,"Elaboración del informe técnico para la autorización de exportación ",1,null,3,"Análisis del caso, y elabaración de informe ",15,null,3,"Recepción de documentos para la donación en vida (placenta y/o cabezas femorales)",0.1,null,3,"Activación de pacienten en LEUN ",2,null,3,"Revisión de factibilidad de capacitación ",4]
[4,"Solicitud de examenes serologicos del donante ",0.2,null,4,"Entrega de la autorización para la exportación de células provenientes de sangre de cordón umbilical para trasplante ",1,null,4,"Revisión del informe  y asignación para la elaboración de la autorización ",3,null,4,"Retiro de tejidos  (placenta y/o cabezas femorales)",0.15,null,4,"Envio de notificación y certificado de registro en LEUN ",1,null,4,"Registro de los participantes en la plataforma de educación virtual ",3]
[5,"Notificacion a los establecimietos de salud acreditados ",0.3,null,5,"Recepción de los formularios RG-INDOT-178 y RG-INDOT-176 firmados por el Servicio Nacional de Aduanas. ",1,null,5,"Elaboración y envío de la autorización de donación en vida",0.5,null,5,"Procesamiento del tejido ",1,null,null,null,null,null,5,"Envío de confirmación de registro y  datos de acceso a los participantes por correo electrónico ",0.25]
[6,"Envio de la oferta renal ",0.3,null,6,"Recepción y archivo del informe del resultado del trasplante ",1,null,6,"Recepción del formulario de post trasplante inmediato ",1]
[7,"Solictud de examenes de histocompatibilidad ",0.15,null,7,"Recepción de solcitud de importación de córneas en la Coordinación Zonal del INDOT ",1]
[8,"Recepcion de resultados ",1,null,8,"Análisis de la solicitud de importación de córneas ",24]
[9,"Asignación renal ",0.3,null,9,"Elaboración del formulario INDOT-TCOR-02 ",5]
[10,"Solicitud de examenes serologicos del donante ",0.15,null,10,"Verificación de estado en la Lista de Espera Única Nacional, (el paciente debe estar en estado activo)",4]
[11,"Envio de la oferta y asignación hepática ",0.15,null,11,"Elaboración de quipux, con la solicitud de importación y documentos habilitantes  para la elaboración del informe ",1]
[12,"Procesamiento de córneas ",1,null,12,"Elaboración del informe técnico para la autorización de exportación ",1]
[13,"Selección del receptor ",0.15,null,13,"Emisión de la autorización de importacion ",3]
[14,"Oferta ",0.15]
[15,"Asignación ",0.15]
[]
[]
[]
[null,"SUMATORIA ACTIVIDADES",{"$f":"SUM(C151:C168)","v":5.0000000000000009},null,null,"SUMATORIA ACTIVIDADES",{"$f":"SUM(G151:G168)","v":48},null,null,"SUMATORIA ACTIVIDADES",{"$f":"SUM(K151:K168)","v":40},null,null,"SUMATORIA ACTIVIDADES",{"$f":"SUM(O151:O168)","v":1.55},null,null,"SUMATORIA ACTIVIDADES",{"$f":"SUM(S151:S168)","v":8.75},null,null,"SUMATORIA ACTIVIDADES",{"$f":"SUM(W151:W168)","v":7.65}]
[]
[]
[]
["TRÁMITE:","Solicitud de Capacitación semipresencial",null,null,"TRÁMITE:","Atención a la información de carácter público relacionada al Instituto Nacional de Donación y Trasplante de Órganos, Tejidos y Células"]
["NO.","ACTIVIDAD","TIEMPO (HORAS)",null,"NO.","ACTIVIDAD","TIEMPO (HORAS)"]
[1,"Recepción de solicitud de capacitación ",0.15,null,1,"Recibir solicitud",0.5]
[2,"Reasignación de solicitud a la dirección correspondiente ",0.15,null,2,"Analizar solicitud",5]
[3,"Revisión de factibilidad de capacitación ",1,null,3,"Elaborar respuesta",2]
[4,"Elaboración  de respuesta  de  factibilidad de la capacitación ",0.3,null,4,"Enviar Respuesta",0.5]
[5,"Revisión de la respuesta de factibilidad de la capacitación ",0.5]
[6,"Envio de la respuesta de factibilidad de la capacitación ",0.4]
[7,"Coordinar y ejecutar  la capacitacíón ",4.5]
[8,"Evaluación de la capacitación ",1]
[]
[]
[]
[]
[]
[]
[]
[]
[]
[]
[]
[]
[]
[]
[]
[]
[]
[]
[]
[]
[]
[]
[]
[null,"SUMATORIA ACTIVIDADES",{"$f":"SUM(C175:C205)","v":8},null,null,"SUMATORIA ACTIVIDADES",{"$f":"SUM(G175:G205)","v":8}]

{"sheet":"TIEMPO DE RESPUESTA","index":7,"n_rows":36,"n_cols":4,"rows_kept":36,"cut":false,"hidden":false,"merged":[[0,0,0,3],[1,0,1,3]]}
["PRIORIZACIÓN DE TRÁMITES ADMINISTRATIVOS"]
["TIEMPO DE RESPUESTA"]
[]
["IDENTIFICADOR","TRÁMITE","TIEMPO RESPUESTA (horas laborables)","PUNTUACIÓN"]
["\tINDOT-008-05-02","Autorización para la donación en vida",40,0]
["INDOT-002-01-01","Solicitud de Acreditación de establecimientos de salud y sus profesionales de salud para programa de trasplante renal",574,30]
["INDOT-002-01-02","\tSolicitud de Acreditación de establecimientos de salud y sus profesionales de salud para programa de trasplante hepático",574,30]
["INDOT-002-01-03","Solicitud de Acreditación de establecimientos de salud y sus profesionales de salud para programa de trasplante de progenitores hematopoyéticos",574,30]
["INDOT-002-01-04","Solicitud de Acreditación de establecimientos de salud y sus profesionales de salud para programa de córneas",574,30]
["INDOT-002-01-05","Solicitud de Acreditación de establecimientos de salud y sus profesionales de salud para programa de trasplante de tejido osteo muscular ligamentoso",574,30]
["INDOT-002-01-06","Solicitud de Acreditación de establecimientos de salud y sus profesionales de salud para programa de ablación y procuración de glóbulos oculares",574,30]
["INDOT-002-01-07","Solicitud de Acreditación de Banco de Tejidos - Almacenamiento temporal y definitivo de tejidos importados",574,30]
["INDOT-002-01-08","Solicitud de Acreditación de Banco de Sangre de Cordón Umbilical",574,30]
["INDOT-002-01-09","Solicitud de Acreditación de laboratorios de HLA para trasplante.",574,30]
["INDOT-002-01-10","Solicitud de Acreditación de establecimientos de salud y sus profesionales de salud para programa de trasplante cardíaco",574,30]
["INDOT-002-01-11","Solicitud de Acreditación de establecimientos de salud y sus profesionales de salud para programa de trasplante pulmonar.",574,30]
["INDOT-002-02-01","Solicitud de Reacreditación de establecimientos de salud y sus profesionales de salud para programa de trasplante renal",574,30]
["INDOT-002-02-02","Solicitud de Reacreditación de establecimientos de salud y sus profesionales de salud para programa de trasplante hepático",574,30]
["INDOT-002-02-03","Solicitud de Reacreditación de establecimientos de salud y sus profesionales de salud para programa de trasplante de progenitores hematopoyéticos",574,30]
["INDOT-002-02-04","Solicitud de Reacreditación de establecimientos de salud y sus profesionales de salud para programa de trasplante de córneas",574,30]
["INDOT-002-02-05","Solicitud de Reacreditación de establecimientos de salud y sus profesionales de salud para programa de trasplante de tejido osteo muscular ligamentoso",574,30]
["INDOT-002-02-06","Solicitud de Reacreditación de establecimientos de salud y sus profesionales de salud para programa de ablación y procuración de glóbulos oculares",574,30]
["INDOT-002-02-08","Solicitud de Reacreditación de Banco de Tejidos - Almacenamiento temporal y definitivo de tejidos importados",574,30]
["INDOT-002-02-09","Solicitud de Reacreditación de Banco de Sangre de Cordón Umbilical",574,30]
["INDOT-002-02-10","Solicitud de Reacreditación de laboratorios de HLA para trasplante",574,30]
["INDOT-002-02-11","\tSolicitud de Reacreditación de establecimientos de salud y sus profesionales de salud para programa de trasplante cardíaco",574,30]
["INDOT-002-02-12","Solicitud de Reacreditación de establecimientos de salud y sus profesionales de salud para programa de trasplante pulmonar",574,30]
["INDOT-003-01-01","Información de la actividad de Donación y Trasplante de Órganos, Tejidos y Células",40,0]
["INDOT-008-02-01","\tSolicitud de Provisión de Tejido Osteo Muscular Ligamentoso (TOML) y piel para trasplante",40,0]
["INDOT-008-03-01","Asignación de Órganos para Pacientes en la Lista de espera única Nacional",5,0]
["INDOT-008-05-01","\tAutorización para la importación y exportación de tejidos y células para trasplante",48,30]
["INDOT-008-05-03","Autorización para la donación en vida tejidos",2,0]
["INDOT-008-06-01","Ingreso a Lista de Espera Única Nacional - LEUN",9,0]
["INDOT-010-01-01","Solicitud de Capacitación virtual",8,0]
["INDOT-010-01-02","Solicitud de Capacitación semipresencial",8,0]
["INDOT-011-01-01","Atención a la información de carácter público relacionada al Instituto Nacional de Donación y Trasplante de Órganos, Tejidos y Células",8,0]

{"sheet":"CANAL ATENCIÓN","index":8,"n_rows":36,"n_cols":12,"rows_kept":36,"cut":false,"hidden":false,"merged":[[0,0,0,3],[1,0,1,3]]}
["PRIORIZACIÓN DE TRÁMITES ADMINISTRATIVOS"]
["CANAL DE ATENCIÓN"]
[null,null,null,null,null,null,null,null,"Totalmente en Línea",null,null,0]
["IDENTIFICADOR","TRÁMITE","CANAL ATENCIÓN","PUNTUACIÓN",null,null,null,null,"No se completa totalmente en línea.",null,null,10]
["INDOT-011-01-01","Atención a la información de carácter público relacionada al Instituto Nacional de Donación y Trasplante de Órganos, Tejidos y Células","No se completa totalmente en línea.",{"$f":"IF(ISBLANK(C5),\"\",IF(C5=\"Totalmente en línea\",0,IF(C5=\"Inicia en línea\",6,10)))","v":10}]
["INDOT-002-01-08","Solicitud de Acreditación de Banco de Sangre de Cordón Umbilical","No se completa totalmente en línea.",{"$f":"IF(ISBLANK(C6),\"\",IF(C6=\"Totalmente en línea\",0,IF(C6=\"Inicia en línea\",6,10)))","v":10}]
["INDOT-002-01-06","Solicitud de Acreditación de establecimientos de salud y sus profesionales de salud para programa de ablación y procuración de glóbulos oculares","No se completa totalmente en línea.",10]
["INDOT-002-01-03","Solicitud de Acreditación de establecimientos de salud y sus profesionales de salud para programa de trasplante de progenitores hematopoyéticos","No se completa totalmente en línea.",10]
["INDOT-002-01-11","Solicitud de Acreditación de establecimientos de salud y sus profesionales de salud para programa de trasplante pulmonar.","No se completa totalmente en línea.",10]
["INDOT-002-02-06","Solicitud de Reacreditación de establecimientos de salud y sus profesionales de salud para programa de ablación y procuración de glóbulos oculares","No se completa totalmente en línea.",10]
["INDOT-002-02-05","Solicitud de Reacreditación de establecimientos de salud y sus profesionales de salud para programa de trasplante de tejido osteo muscular ligamentoso","No se completa totalmente en línea.",10]
["INDOT-002-02-10","Solicitud de Reacreditación de laboratorios de HLA para trasplante","No se completa totalmente en línea.",10]
["INDOT-002-02-11","\tSolicitud de Reacreditación de establecimientos de salud y sus profesionales de salud para programa de trasplante cardíaco","No se completa totalmente en línea.",10]
["INDOT-002-01-07","Solicitud de Acreditación de Banco de Tejidos - Almacenamiento temporal y definitivo de tejidos importados","No se completa totalmente en línea.",10]
["INDOT-002-01-01","Solicitud de Acreditación de establecimientos de salud y sus profesionales de salud para programa de trasplante renal","No se completa totalmente en línea.",10]
["INDOT-002-01-09","Solicitud de Acreditación de laboratorios de HLA para trasplante.","No se completa totalmente en línea.",10]
["INDOT-010-01-02","Solicitud de Capacitación semipresencial","Totalmente en Línea",0]
["INDOT-002-02-09","Solicitud de Reacreditación de Banco de Sangre de Cordón Umbilical","No se completa totalmente en línea.",10]
["INDOT-002-02-08","Solicitud de Reacreditación de Banco de Tejidos - Almacenamiento temporal y definitivo de tejidos importados","No se completa totalmente en línea.",10]
["INDOT-002-02-03","Solicitud de Reacreditación de establecimientos de salud y sus profesionales de salud para programa de trasplante de progenitores hematopoyéticos","No se completa totalmente en línea.",10]
["INDOT-002-02-02","Solicitud de Reacreditación de establecimientos de salud y sus profesionales de salud para programa de trasplante hepático","No se completa totalmente en línea.",10]
["INDOT-002-02-12","Solicitud de Reacreditación de establecimientos de salud y sus profesionales de salud para programa de trasplante pulmonar","No se completa totalmente en línea.",10]
["INDOT-002-01-10","Solicitud de Acreditación de establecimientos de salud y sus profesionales de salud para programa de trasplante cardíaco","No se completa totalmente en línea.",10]
["INDOT-010-01-01","Solicitud de Capacitación virtual","Totalmente en Línea",0]
["INDOT-002-01-02","\tSolicitud de Acreditación de establecimientos de salud y sus profesionales de salud para programa de trasplante hepático","No se completa totalmente en línea.",10]
["INDOT-002-01-05","Solicitud de Acreditación de establecimientos de salud y sus profesionales de salud para programa de trasplante de tejido osteo muscular ligamentoso","No se completa totalmente en línea.",10]
["INDOT-002-02-01","Solicitud de Reacreditación de establecimientos de salud y sus profesionales de salud para programa de trasplante renal","No se completa totalmente en línea.",10]
["\tINDOT-008-05-02","Autorización para la donación en vida","No se completa totalmente en línea.",10]
["INDOT-002-01-04","Solicitud de Acreditación de establecimientos de salud y sus profesionales de salud para programa de córneas","No se completa totalmente en línea.",10]
["INDOT-002-02-04","Solicitud de Reacreditación de establecimientos de salud y sus profesionales de salud para programa de trasplante de córneas","No se completa totalmente en línea.",10]
["INDOT-008-03-01","Asignación de Órganos para Pacientes en la Lista de espera única Nacional","Totalmente en Línea",0]
["INDOT-008-05-01","\tAutorización para la importación y exportación de tejidos y células para trasplante","No se completa totalmente en línea.",10]
["INDOT-008-05-03","Autorización para la donación en vida tejidos","Totalmente en Línea",0]
["INDOT-008-02-01","\tSolicitud de Provisión de Tejido Osteo Muscular Ligamentoso (TOML) y piel para trasplante","No se completa totalmente en línea.",10]
["INDOT-008-06-01","Ingreso a Lista de Espera Única Nacional - LEUN","Totalmente en Línea",0]
["INDOT-003-01-01","Información de la actividad de Donación y Trasplante de Órganos, Tejidos y Células","Totalmente en Línea",0]

{"sheet":"RESUMEN","index":9,"n_rows":35,"n_cols":25,"rows_kept":35,"cut":false,"hidden":false,"merged":[[1,9,1,10],[1,11,1,12],[1,13,2,13],[0,2,0,6],[0,7,0,12],[1,5,2,5],[1,6,2,6],[1,7,1,8],[1,0,2,0],[1,1,2,1],[1,2,2,2],[1,3,2,3],[1,4,2,4]]}
[null,null,"BÁSICOS",null,null,null,null,"ADICIONALES"]
["ID trámite","Nombre del trámite","Demanda","Quejas","Costo para administración","Tiempo de respuesta","Canal de atención","Necesidades ciudadanas",null,"Susceptibilidad a corrupción",null,"Volumen de devoluciones",null,"PUNTAJE TOTAL"]
[null,null,null,null,null,null,null,"Criterio","Puntuación","Criterio","Puntuación","Criterio","Puntuación",null,null,null,null,null,null,null,"demanda",0,3,6,10]
["INDOT-011-01-01","Atención a la información de carácter público relacionada al Instituto Nacional de Donación y Trasplante de Órganos, Tejidos y Células",0,0,5,0,{"$f":"IF(ISBLANK(F4),\"\",IF(F4=\"Totalmente en línea\",0,IF(F4=\"Inicia en línea\",6,10)))","v":10},"NO",{"$f":"IF(H4=\"SI\",5,0)","v":0},"NO",{"$f":"IF(J4=\"SI\",10,0)","v":0},"NO",{"$f":"IF(L4=\"SI\",5,0)","v":0},{"$f":"SUM(C4:G4,I4,K4,M4)","v":15},null,null,null,null,null,null,"quejas",0,4,10]
["INDOT-002-01-08","Solicitud de Acreditación de Banco de Sangre de Cordón Umbilical",0,0,5,30,{"$f":"IF(ISBLANK(F5),\"\",IF(F5=\"Totalmente en línea\",0,IF(F5=\"Inicia en línea\",6,10)))","v":10},"NO",{"$f":"IF(H5=\"SI\",5,0)","v":0},"NO",{"$f":"IF(J5=\"SI\",10,0)","v":0},"NO",{"$f":"IF(L5=\"SI\",5,0)","v":0},{"$f":"SUM(C5:G5,I5,K5,M5)","v":45},null,null,null,null,null,null,"cpa",5,10,20]
["INDOT-002-01-06","Solicitud de Acreditación de establecimientos de salud y sus profesionales de salud para programa de ablación y procuración de glóbulos oculares",0,0,5,30,10,"NO",0,"NO",0,"NO",0,45,null,null,null,null,null,null,"tr",0,30]
["INDOT-002-01-03","Solicitud de Acreditación de establecimientos de salud y sus profesionales de salud para programa de trasplante de progenitores hematopoyéticos",0,0,5,30,10,"NO",0,"NO",0,"NO",0,45,null,null,null,null,null,null,"ca",0,10]
["INDOT-002-01-11","Solicitud de Acreditación de establecimientos de salud y sus profesionales de salud para programa de trasplante pulmonar.",0,0,5,30,10,"NO",0,"NO",0,"NO",0,45,null,null,null,null,null,null,null,"SI","NO"]
["INDOT-002-02-06","Solicitud de Reacreditación de establecimientos de salud y sus profesionales de salud para programa de ablación y procuración de glóbulos oculares",0,0,5,30,10,"NO",0,"NO",0,"NO",0,45]
["INDOT-002-02-05","Solicitud de Reacreditación de establecimientos de salud y sus profesionales de salud para programa de trasplante de tejido osteo muscular ligamentoso",0,0,5,30,10,"NO",0,"NO",0,"NO",0,45]
["INDOT-002-02-10","Solicitud de Reacreditación de laboratorios de HLA para trasplante",0,0,5,30,10,"NO",0,"NO",0,"NO",0,45]
["INDOT-002-02-11","\tSolicitud de Reacreditación de establecimientos de salud y sus profesionales de salud para programa de trasplante cardíaco",3,0,5,30,10,"NO",0,"NO",0,"NO",0,48]
["INDOT-002-01-07","Solicitud de Acreditación de Banco de Tejidos - Almacenamiento temporal y definitivo de tejidos importados",3,0,5,30,10,"NO",0,"NO",0,"NO",0,48]
["INDOT-002-01-01","Solicitud de Acreditación de establecimientos de salud y sus profesionales de salud para programa de trasplante renal",3,0,10,30,10,"NO",0,"NO",0,"NO",0,53]
["INDOT-002-01-09","Solicitud de Acreditación de laboratorios de HLA para trasplante.",3,0,10,30,10,"NO",0,"NO",0,"NO",0,53]
["INDOT-010-01-02","Solicitud de Capacitación semipresencial",3,0,10,0,10,"NO",0,"NO",0,"NO",0,23]
["INDOT-002-02-09","Solicitud de Reacreditación de Banco de Sangre de Cordón Umbilical",3,10,10,30,10,"NO",0,"NO",0,"NO",0,63]
["INDOT-002-02-08","Solicitud de Reacreditación de Banco de Tejidos - Almacenamiento temporal y definitivo de tejidos importados",3,0,10,30,10,"NO",0,"NO",0,"NO",0,53]
["INDOT-002-02-03","Solicitud de Reacreditación de establecimientos de salud y sus profesionales de salud para programa de trasplante de progenitores hematopoyéticos",3,0,10,30,10,"NO",0,"NO",0,"NO",0,53]
["INDOT-002-02-02","Solicitud de Reacreditación de establecimientos de salud y sus profesionales de salud para programa de trasplante hepático",3,0,10,30,10,"NO",0,"NO",0,"NO",0,53]
["INDOT-002-02-12","Solicitud de Reacreditación de establecimientos de salud y sus profesionales de salud para programa de trasplante pulmonar",3,0,10,30,10,"NO",0,"NO",0,"NO",0,53]
["INDOT-002-01-10","Solicitud de Acreditación de establecimientos de salud y sus profesionales de salud para programa de trasplante cardíaco",6,0,10,30,10,"NO",0,"NO",0,"NO",0,56]
["INDOT-010-01-01","Solicitud de Capacitación virtual",6,0,10,0,10,"NO",0,"NO",0,"NO",0,26]
["INDOT-002-01-02","\tSolicitud de Acreditación de establecimientos de salud y sus profesionales de salud para programa de trasplante hepático",6,0,10,30,10,"NO",0,"NO",0,"NO",0,56]
["INDOT-002-01-05","Solicitud de Acreditación de establecimientos de salud y sus profesionales de salud para programa de trasplante de tejido osteo muscular ligamentoso",6,0,10,30,10,"NO",0,"NO",0,"NO",0,56]
["INDOT-002-02-01","Solicitud de Reacreditación de establecimientos de salud y sus profesionales de salud para programa de trasplante renal",6,0,10,30,10,"NO",0,"NO",0,"NO",0,56]
["\tINDOT-008-05-02","Autorización para la donación en vida",6,0,10,0,10,"NO",0,"NO",0,"NO",0,26]
["INDOT-002-01-04","Solicitud de Acreditación de establecimientos de salud y sus profesionales de salud para programa de córneas",6,0,10,30,10,"NO",0,"NO",0,"NO",0,56]
["INDOT-002-02-04","Solicitud de Reacreditación de establecimientos de salud y sus profesionales de salud para programa de trasplante de córneas",10,0,10,30,10,"NO",0,"NO",0,"NO",0,60]
["INDOT-008-03-01","Asignación de Órganos para Pacientes en la Lista de espera única Nacional",10,0,10,0,10,"NO",0,"NO",0,"NO",0,30]
["INDOT-008-05-01","\tAutorización para la importación y exportación de tejidos y células para trasplante",10,0,10,30,0,"NO",0,"NO",0,"NO",0,50]
["INDOT-008-05-03","Autorización para la donación en vida tejidos",10,0,10,0,10,"NO",0,"NO",0,"NO",0,30]
["INDOT-008-02-01","\tSolicitud de Provisión de Tejido Osteo Muscular Ligamentoso (TOML) y piel para trasplante",10,0,10,0,10,"NO",0,"NO",0,"NO",0,30]
["INDOT-008-06-01","Ingreso a Lista de Espera Única Nacional - LEUN",10,0,10,0,10,"NO",0,"NO",0,"NO",0,30]
["INDOT-003-01-01","Información de la actividad de Donación y Trasplante de Órganos, Tejidos y Células",10,0,10,0,10,"NO",0,"NO",0,"NO",0,30]